Workbook

Sheet Header
R5: =RANDBETWEEN(1,R6) -> 12
R6: =MAX('Marketing Words'!B6:B102) -> 17
C7: Term Loans
C8: Quick and straightforward First and Second Charge Term Loans | H8: a
C10: = Loans from £10,000 - £500,000
C11: = Mortgage term: 3 – 30 years
C12: = Adverse credit considered
C13: = Automated valuations (AVM) accepted | K13: =VLOOKUP(R5,'Marketing Words'!B6:C42,2,FALSE) -> Personal & Limited company borrowers welcome
C16: Bridging Loans
C17: Quick and straightforward First and Second Charge Bridging Loans
C19: = Loans from £25,000 - £500,000
C20: = Loan term: 1–18 months
C21: = Funds possible in 48 hours
C22: = Pay monthly or at the end of the loan
C23: = Adverse credit considered
C24: = Multiple exit strategies accepted | K24: Quote History
K26: Any quotes saved are stored here
C28: Please get in touch
C29: Our mandated underwriters can be reached on:
C30: 0800 032 5285
C31: referrals@mercantiletrust.co.uk

Sheet Quote History
C4: Term Loan Quote History | M4: ='BTL Workings'!C3 -> B
C5: Retrieve Quote: | H5: Delete Quote: | M5: =IF(J5>MAX(B8:B17),"Error",J5+5) -> 5
B6: ='BTL Quote History'!C4 -> ERROR | C6: 2 | D6: 2 | E6: 6 | F6: 5 | G6: 7 | H6: 14 | I6: 59 | J6: 58
B7: No | C7: Date | D7: Time | E7: Name | F7: Plan | G7: Security Property | H7: Net Loan | I7: Payment | J7: Rate
B8: =IF('BTL Quote History'!C1=0,"",'BTL Quote History'!C1) ->  | C8: =IF($B8="","",HLOOKUP($B8,'BTL Quote History'!$2:$62,C$6,FALSE)) ->  | D8: =IF($B8="","",HLOOKUP($B8,'BTL Quote History'!$2:$62,D$6,FALSE)) ->  | E8: =IF($B8="","",HLOOKUP($B8,'BTL Quote History'!$2:$62,E$6,FALSE)) ->  | F8: =IF($B8="","",HLOOKUP($B8,'BTL Quote History'!$2:$62,F$6,FALSE)) ->  | G8: =IF($B8="","",HLOOKUP($B8,'BTL Quote History'!$2:$62,G$6,FALSE)) ->  | H8: =IF($B8="","",HLOOKUP($B8,'BTL Quote History'!$2:$62,H$6,FALSE)) ->  | I8: =IF($B8="","",HLOOKUP($B8,'BTL Quote History'!$2:$62,I$6,FALSE)) ->  | J8: =IF($B8="","",HLOOKUP($B8,'BTL Quote History'!$2:$62,J$6,FALSE)) -> 
B9: =IF(OR(B8="",B8=1),"",B8-1) ->  | C9: =IF($B9="","",HLOOKUP($B9,'BTL Quote History'!$2:$62,C$6,FALSE)) ->  | D9: =IF($B9="","",HLOOKUP($B9,'BTL Quote History'!$2:$62,D$6,FALSE)) ->  | E9: =IF($B9="","",HLOOKUP($B9,'BTL Quote History'!$2:$62,E$6,FALSE)) ->  | F9: =IF($B9="","",HLOOKUP($B9,'BTL Quote History'!$2:$62,F$6,FALSE)) ->  | G9: =IF($B9="","",HLOOKUP($B9,'BTL Quote History'!$2:$62,G$6,FALSE)) ->  | H9: =IF($B9="","",HLOOKUP($B9,'BTL Quote History'!$2:$62,H$6,FALSE)) ->  | I9: =IF($B9="","",HLOOKUP($B9,'BTL Quote History'!$2:$62,I$6,FALSE)) ->  | J9: =IF($B9="","",HLOOKUP($B9,'BTL Quote History'!$2:$62,J$6,FALSE)) -> 
B10: =IF(OR(B9="",B9=1),"",B9-1) ->  | C10: =IF($B10="","",HLOOKUP($B10,'BTL Quote History'!$2:$62,C$6,FALSE)) ->  | D10: =IF($B10="","",HLOOKUP($B10,'BTL Quote History'!$2:$62,D$6,FALSE)) ->  | E10: =IF($B10="","",HLOOKUP($B10,'BTL Quote History'!$2:$62,E$6,FALSE)) ->  | F10: =IF($B10="","",HLOOKUP($B10,'BTL Quote History'!$2:$62,F$6,FALSE)) ->  | G10: =IF($B10="","",HLOOKUP($B10,'BTL Quote History'!$2:$62,G$6,FALSE)) ->  | H10: =IF($B10="","",HLOOKUP($B10,'BTL Quote History'!$2:$62,H$6,FALSE)) ->  | I10: =IF($B10="","",HLOOKUP($B10,'BTL Quote History'!$2:$62,I$6,FALSE)) ->  | J10: =IF($B10="","",HLOOKUP($B10,'BTL Quote History'!$2:$62,J$6,FALSE)) -> 
B11: =IF(OR(B10="",B10=1),"",B10-1) ->  | C11: =IF($B11="","",HLOOKUP($B11,'BTL Quote History'!$2:$62,C$6,FALSE)) ->  | D11: =IF($B11="","",HLOOKUP($B11,'BTL Quote History'!$2:$62,D$6,FALSE)) ->  | E11: =IF($B11="","",HLOOKUP($B11,'BTL Quote History'!$2:$62,E$6,FALSE)) ->  | F11: =IF($B11="","",HLOOKUP($B11,'BTL Quote History'!$2:$62,F$6,FALSE)) ->  | G11: =IF($B11="","",HLOOKUP($B11,'BTL Quote History'!$2:$62,G$6,FALSE)) ->  | H11: =IF($B11="","",HLOOKUP($B11,'BTL Quote History'!$2:$62,H$6,FALSE)) ->  | I11: =IF($B11="","",HLOOKUP($B11,'BTL Quote History'!$2:$62,I$6,FALSE)) ->  | J11: =IF($B11="","",HLOOKUP($B11,'BTL Quote History'!$2:$62,J$6,FALSE)) -> 
C12: =IF($B12="","",HLOOKUP($B12,'BTL Quote History'!$2:$62,C$6,FALSE)) ->  | D12: =IF($B12="","",HLOOKUP($B12,'BTL Quote History'!$2:$62,D$6,FALSE)) ->  | E12: =IF($B12="","",HLOOKUP($B12,'BTL Quote History'!$2:$62,E$6,FALSE)) ->  | F12: =IF($B12="","",HLOOKUP($B12,'BTL Quote History'!$2:$62,F$6,FALSE)) ->  | G12: =IF($B12="","",HLOOKUP($B12,'BTL Quote History'!$2:$62,G$6,FALSE)) ->  | H12: =IF($B12="","",HLOOKUP($B12,'BTL Quote History'!$2:$62,H$6,FALSE)) ->  | I12: =IF($B12="","",HLOOKUP($B12,'BTL Quote History'!$2:$62,I$6,FALSE)) ->  | J12: =IF($B12="","",HLOOKUP($B12,'BTL Quote History'!$2:$62,J$6,FALSE)) -> 
C13: =IF($B13="","",HLOOKUP($B13,'BTL Quote History'!$2:$62,C$6,FALSE)) ->  | D13: =IF($B13="","",HLOOKUP($B13,'BTL Quote History'!$2:$62,D$6,FALSE)) ->  | E13: =IF($B13="","",HLOOKUP($B13,'BTL Quote History'!$2:$62,E$6,FALSE)) ->  | F13: =IF($B13="","",HLOOKUP($B13,'BTL Quote History'!$2:$62,F$6,FALSE)) ->  | G13: =IF($B13="","",HLOOKUP($B13,'BTL Quote History'!$2:$62,G$6,FALSE)) ->  | H13: =IF($B13="","",HLOOKUP($B13,'BTL Quote History'!$2:$62,H$6,FALSE)) ->  | I13: =IF($B13="","",HLOOKUP($B13,'BTL Quote History'!$2:$62,I$6,FALSE)) ->  | J13: =IF($B13="","",HLOOKUP($B13,'BTL Quote History'!$2:$62,J$6,FALSE)) -> 
C14: =IF($B14="","",HLOOKUP($B14,'BTL Quote History'!$2:$62,C$6,FALSE)) ->  | D14: =IF($B14="","",HLOOKUP($B14,'BTL Quote History'!$2:$62,D$6,FALSE)) ->  | E14: =IF($B14="","",HLOOKUP($B14,'BTL Quote History'!$2:$62,E$6,FALSE)) ->  | F14: =IF($B14="","",HLOOKUP($B14,'BTL Quote History'!$2:$62,F$6,FALSE)) ->  | G14: =IF($B14="","",HLOOKUP($B14,'BTL Quote History'!$2:$62,G$6,FALSE)) ->  | H14: =IF($B14="","",HLOOKUP($B14,'BTL Quote History'!$2:$62,H$6,FALSE)) ->  | I14: =IF($B14="","",HLOOKUP($B14,'BTL Quote History'!$2:$62,I$6,FALSE)) ->  | J14: =IF($B14="","",HLOOKUP($B14,'BTL Quote History'!$2:$62,J$6,FALSE)) -> 
C15: =IF($B15="","",HLOOKUP($B15,'BTL Quote History'!$2:$62,C$6,FALSE)) ->  | D15: =IF($B15="","",HLOOKUP($B15,'BTL Quote History'!$2:$62,D$6,FALSE)) ->  | E15: =IF($B15="","",HLOOKUP($B15,'BTL Quote History'!$2:$62,E$6,FALSE)) ->  | F15: =IF($B15="","",HLOOKUP($B15,'BTL Quote History'!$2:$62,F$6,FALSE)) ->  | G15: =IF($B15="","",HLOOKUP($B15,'BTL Quote History'!$2:$62,G$6,FALSE)) ->  | H15: =IF($B15="","",HLOOKUP($B15,'BTL Quote History'!$2:$62,H$6,FALSE)) ->  | I15: =IF($B15="","",HLOOKUP($B15,'BTL Quote History'!$2:$62,I$6,FALSE)) ->  | J15: =IF($B15="","",HLOOKUP($B15,'BTL Quote History'!$2:$62,J$6,FALSE)) -> 
C16: =IF($B16="","",HLOOKUP($B16,'BTL Quote History'!$2:$62,C$6,FALSE)) ->  | D16: =IF($B16="","",HLOOKUP($B16,'BTL Quote History'!$2:$62,D$6,FALSE)) ->  | E16: =IF($B16="","",HLOOKUP($B16,'BTL Quote History'!$2:$62,E$6,FALSE)) ->  | F16: =IF($B16="","",HLOOKUP($B16,'BTL Quote History'!$2:$62,F$6,FALSE)) ->  | G16: =IF($B16="","",HLOOKUP($B16,'BTL Quote History'!$2:$62,G$6,FALSE)) ->  | H16: =IF($B16="","",HLOOKUP($B16,'BTL Quote History'!$2:$62,H$6,FALSE)) ->  | I16: =IF($B16="","",HLOOKUP($B16,'BTL Quote History'!$2:$62,I$6,FALSE)) ->  | J16: =IF($B16="","",HLOOKUP($B16,'BTL Quote History'!$2:$62,J$6,FALSE)) -> 
C17: =IF($B17="","",HLOOKUP($B17,'BTL Quote History'!$2:$62,C$6,FALSE)) ->  | D17: =IF($B17="","",HLOOKUP($B17,'BTL Quote History'!$2:$62,D$6,FALSE)) ->  | E17: =IF($B17="","",HLOOKUP($B17,'BTL Quote History'!$2:$62,E$6,FALSE)) ->  | F17: =IF($B17="","",HLOOKUP($B17,'BTL Quote History'!$2:$62,F$6,FALSE)) ->  | G17: =IF($B17="","",HLOOKUP($B17,'BTL Quote History'!$2:$62,G$6,FALSE)) ->  | H17: =IF($B17="","",HLOOKUP($B17,'BTL Quote History'!$2:$62,H$6,FALSE)) ->  | I17: =IF($B17="","",HLOOKUP($B17,'BTL Quote History'!$2:$62,I$6,FALSE)) ->  | J17: =IF($B17="","",HLOOKUP($B17,'BTL Quote History'!$2:$62,J$6,FALSE)) -> 
C20: Bridge Quote History
C21: Retrieve Quote: | H21: Delete Quote: | M21: =IF(J21>MAX(B24:B33),"Error",J21+5) -> 5
B22: ='BR Quote History'!C4 -> ERROR | C22: 2 | D22: 2 | E22: 6 | F22: 5 | G22: 7 | H22: 14 | I22: 58 | J22: 57
B23: No | C23: Date | D23: Time | E23: Name | F23: Plan | G23: Security Property | H23: Net Loan | I23: PMT/Mth INT | J23: Rate
B24: =IF('BR Quote History'!C1=0,"",'BR Quote History'!C1) ->  | C24: =IF($B24="","",HLOOKUP($B24,'BR Quote History'!$2:$62,C$22,FALSE)) ->  | D24: =IF($B24="","",HLOOKUP($B24,'BR Quote History'!$2:$62,D$22,FALSE)) ->  | E24: =IF($B24="","",HLOOKUP($B24,'BR Quote History'!$2:$62,E$22,FALSE)) ->  | F24: =IF($B24="","",HLOOKUP($B24,'BR Quote History'!$2:$62,F$22,FALSE)) ->  | G24: =IF($B24="","",HLOOKUP($B24,'BR Quote History'!$2:$62,G$22,FALSE)) ->  | H24: =IF($B24="","",HLOOKUP($B24,'BR Quote History'!$2:$62,H$22,FALSE)) ->  | I24: =IF($B24="","",HLOOKUP($B24,'BR Quote History'!$2:$62,I$22,FALSE)) ->  | J24: =IF($B24="","",HLOOKUP($B24,'BR Quote History'!$2:$62,J$22,FALSE)) -> 
B25: =IF(OR(B24="",B24=1),"",B24-1) ->  | C25: =IF($B25="","",HLOOKUP($B25,'BR Quote History'!$2:$62,C$22,FALSE)) ->  | D25: =IF($B25="","",HLOOKUP($B25,'BR Quote History'!$2:$62,D$22,FALSE)) ->  | E25: =IF($B25="","",HLOOKUP($B25,'BR Quote History'!$2:$62,E$22,FALSE)) ->  | F25: =IF($B25="","",HLOOKUP($B25,'BR Quote History'!$2:$62,F$22,FALSE)) ->  | G25: =IF($B25="","",HLOOKUP($B25,'BR Quote History'!$2:$62,G$22,FALSE)) ->  | H25: =IF($B25="","",HLOOKUP($B25,'BR Quote History'!$2:$62,H$22,FALSE)) ->  | I25: =IF($B25="","",HLOOKUP($B25,'BR Quote History'!$2:$62,I$22,FALSE)) ->  | J25: =IF($B25="","",HLOOKUP($B25,'BR Quote History'!$2:$62,J$22,FALSE)) -> 
C26: =IF($B26="","",HLOOKUP($B26,'BR Quote History'!$2:$62,C$22,FALSE)) ->  | D26: =IF($B26="","",HLOOKUP($B26,'BR Quote History'!$2:$62,D$22,FALSE)) ->  | E26: =IF($B26="","",HLOOKUP($B26,'BR Quote History'!$2:$62,E$22,FALSE)) ->  | F26: =IF($B26="","",HLOOKUP($B26,'BR Quote History'!$2:$62,F$22,FALSE)) ->  | G26: =IF($B26="","",HLOOKUP($B26,'BR Quote History'!$2:$62,G$22,FALSE)) ->  | H26: =IF($B26="","",HLOOKUP($B26,'BR Quote History'!$2:$62,H$22,FALSE)) ->  | I26: =IF($B26="","",HLOOKUP($B26,'BR Quote History'!$2:$62,I$22,FALSE)) ->  | J26: =IF($B26="","",HLOOKUP($B26,'BR Quote History'!$2:$62,J$22,FALSE)) -> 
C27: =IF($B27="","",HLOOKUP($B27,'BR Quote History'!$2:$62,C$22,FALSE)) ->  | D27: =IF($B27="","",HLOOKUP($B27,'BR Quote History'!$2:$62,D$22,FALSE)) ->  | E27: =IF($B27="","",HLOOKUP($B27,'BR Quote History'!$2:$62,E$22,FALSE)) ->  | F27: =IF($B27="","",HLOOKUP($B27,'BR Quote History'!$2:$62,F$22,FALSE)) ->  | G27: =IF($B27="","",HLOOKUP($B27,'BR Quote History'!$2:$62,G$22,FALSE)) ->  | H27: =IF($B27="","",HLOOKUP($B27,'BR Quote History'!$2:$62,H$22,FALSE)) ->  | I27: =IF($B27="","",HLOOKUP($B27,'BR Quote History'!$2:$62,I$22,FALSE)) ->  | J27: =IF($B27="","",HLOOKUP($B27,'BR Quote History'!$2:$62,J$22,FALSE)) -> 
C28: =IF($B28="","",HLOOKUP($B28,'BR Quote History'!$2:$62,C$22,FALSE)) ->  | D28: =IF($B28="","",HLOOKUP($B28,'BR Quote History'!$2:$62,D$22,FALSE)) ->  | E28: =IF($B28="","",HLOOKUP($B28,'BR Quote History'!$2:$62,E$22,FALSE)) ->  | F28: =IF($B28="","",HLOOKUP($B28,'BR Quote History'!$2:$62,F$22,FALSE)) ->  | G28: =IF($B28="","",HLOOKUP($B28,'BR Quote History'!$2:$62,G$22,FALSE)) ->  | H28: =IF($B28="","",HLOOKUP($B28,'BR Quote History'!$2:$62,H$22,FALSE)) ->  | I28: =IF($B28="","",HLOOKUP($B28,'BR Quote History'!$2:$62,I$22,FALSE)) ->  | J28: =IF($B28="","",HLOOKUP($B28,'BR Quote History'!$2:$62,J$22,FALSE)) -> 
C29: =IF($B29="","",HLOOKUP($B29,'BR Quote History'!$2:$62,C$22,FALSE)) ->  | D29: =IF($B29="","",HLOOKUP($B29,'BR Quote History'!$2:$62,D$22,FALSE)) ->  | E29: =IF($B29="","",HLOOKUP($B29,'BR Quote History'!$2:$62,E$22,FALSE)) ->  | F29: =IF($B29="","",HLOOKUP($B29,'BR Quote History'!$2:$62,F$22,FALSE)) ->  | G29: =IF($B29="","",HLOOKUP($B29,'BR Quote History'!$2:$62,G$22,FALSE)) ->  | H29: =IF($B29="","",HLOOKUP($B29,'BR Quote History'!$2:$62,H$22,FALSE)) ->  | I29: =IF($B29="","",HLOOKUP($B29,'BR Quote History'!$2:$62,I$22,FALSE)) ->  | J29: =IF($B29="","",HLOOKUP($B29,'BR Quote History'!$2:$62,J$22,FALSE)) -> 
C30: =IF($B30="","",HLOOKUP($B30,'BR Quote History'!$2:$62,C$22,FALSE)) ->  | D30: =IF($B30="","",HLOOKUP($B30,'BR Quote History'!$2:$62,D$22,FALSE)) ->  | E30: =IF($B30="","",HLOOKUP($B30,'BR Quote History'!$2:$62,E$22,FALSE)) ->  | F30: =IF($B30="","",HLOOKUP($B30,'BR Quote History'!$2:$62,F$22,FALSE)) ->  | G30: =IF($B30="","",HLOOKUP($B30,'BR Quote History'!$2:$62,G$22,FALSE)) ->  | H30: =IF($B30="","",HLOOKUP($B30,'BR Quote History'!$2:$62,H$22,FALSE)) ->  | I30: =IF($B30="","",HLOOKUP($B30,'BR Quote History'!$2:$62,I$22,FALSE)) ->  | J30: =IF($B30="","",HLOOKUP($B30,'BR Quote History'!$2:$62,J$22,FALSE)) -> 
C31: =IF($B31="","",HLOOKUP($B31,'BR Quote History'!$2:$62,C$22,FALSE)) ->  | D31: =IF($B31="","",HLOOKUP($B31,'BR Quote History'!$2:$62,D$22,FALSE)) ->  | E31: =IF($B31="","",HLOOKUP($B31,'BR Quote History'!$2:$62,E$22,FALSE)) ->  | F31: =IF($B31="","",HLOOKUP($B31,'BR Quote History'!$2:$62,F$22,FALSE)) ->  | G31: =IF($B31="","",HLOOKUP($B31,'BR Quote History'!$2:$62,G$22,FALSE)) ->  | H31: =IF($B31="","",HLOOKUP($B31,'BR Quote History'!$2:$62,H$22,FALSE)) ->  | I31: =IF($B31="","",HLOOKUP($B31,'BR Quote History'!$2:$62,I$22,FALSE)) ->  | J31: =IF($B31="","",HLOOKUP($B31,'BR Quote History'!$2:$62,J$22,FALSE)) -> 
C32: =IF($B32="","",HLOOKUP($B32,'BR Quote History'!$2:$62,C$22,FALSE)) ->  | D32: =IF($B32="","",HLOOKUP($B32,'BR Quote History'!$2:$62,D$22,FALSE)) ->  | E32: =IF($B32="","",HLOOKUP($B32,'BR Quote History'!$2:$62,E$22,FALSE)) ->  | F32: =IF($B32="","",HLOOKUP($B32,'BR Quote History'!$2:$62,F$22,FALSE)) ->  | G32: =IF($B32="","",HLOOKUP($B32,'BR Quote History'!$2:$62,G$22,FALSE)) ->  | H32: =IF($B32="","",HLOOKUP($B32,'BR Quote History'!$2:$62,H$22,FALSE)) ->  | I32: =IF($B32="","",HLOOKUP($B32,'BR Quote History'!$2:$62,I$22,FALSE)) ->  | J32: =IF($B32="","",HLOOKUP($B32,'BR Quote History'!$2:$62,J$22,FALSE)) -> 
C33: =IF($B33="","",HLOOKUP($B33,'BR Quote History'!$2:$62,C$22,FALSE)) ->  | D33: =IF($B33="","",HLOOKUP($B33,'BR Quote History'!$2:$62,D$22,FALSE)) ->  | E33: =IF($B33="","",HLOOKUP($B33,'BR Quote History'!$2:$62,E$22,FALSE)) ->  | F33: =IF($B33="","",HLOOKUP($B33,'BR Quote History'!$2:$62,F$22,FALSE)) ->  | G33: =IF($B33="","",HLOOKUP($B33,'BR Quote History'!$2:$62,G$22,FALSE)) ->  | H33: =IF($B33="","",HLOOKUP($B33,'BR Quote History'!$2:$62,H$22,FALSE)) ->  | I33: =IF($B33="","",HLOOKUP($B33,'BR Quote History'!$2:$62,I$22,FALSE)) ->  | J33: =IF($B33="","",HLOOKUP($B33,'BR Quote History'!$2:$62,J$22,FALSE)) -> 

Sheet Bridge Quote
N1: Broker / Direct | O1: ='BR Workings'!C3 -> B
B2: Applicant Details | E2: Loan Outputs | H2: Bridge Calculator | K2: Affordability - Household Size | N2: Completed | O2: Inputs | P2: Hist row | Q2: Afford inputs
B3: Applicant Name | C3: <Complete> | D3: =IF(OR(C3="",C3="<Select>",C3="<Complete>"),1,0) -> 1 | E3: Net Loan | F3: =IF('BR Workings'!$C$10="N","",'BR Workings'!F39) ->  | K3: Number of Adults | L3: <Select> | M3: Add the relevant number of Adults/Dependants living in the property. | N3: =IF(OR(L3="",L3="<Select>",L3="<Complete>"),1,0) -> 1 | O3: =IF(INDIRECT("'br Quote History'!C"&P3)="","",INDIRECT("'br Quote History'!C"&P3)) -> <Complete> | P3: 7 | Q3: =IF('BR Quote History'!C37="",0,'BR Quote History'!C37) -> <Select>
E4: ="Lender Fee"&IF(C42=TRUE," (up front)","") -> Lender Fee | F4: =IF('BR Workings'!$C$10="N","",C19) ->  | K4: Number of Dependants | L4: <Select> | N4: =IF(OR(L4="",L4="<Select>",L4="<Complete>"),1,0) -> 1 | O4: =IF(INDIRECT("'BTL Quote History'!C"&P4)="",0,INDIRECT("'BTL Quote History'!C"&P4)) ->  | Q4: =IF('BR Quote History'!C38="",0,'BR Quote History'!C38) -> <Select>
B5: Security Address | C5: <Complete> | D5: =IF(OR(C5="",C5="<Select>",C5="<Complete>"),1,0) -> 1 | E5: ="Title Insurance"&IF(C42=TRUE," (up front)","") -> Title Insurance | F5: =IF('BR Workings'!$C$10="N","",'BR Workings'!F42) ->  | J5: 1 | K5: =IF($N$4=1,"",IF(J5<=$L$4,"Dependant "&J5&" - age","")) ->  | L5: <Select> | M5: Any dependants aged over 18 should be classed as an adults. | N5: 1 | O5: =IF(INDIRECT("'br Quote History'!C"&P5)="","",INDIRECT("'br Quote History'!C"&P5)) -> <Complete> | P5: 8 | Q5: =IF('BR Quote History'!C39="",0,'BR Quote History'!C39) -> <Select>
E6: ="Broker Fee"&IF(C41=TRUE," (up front)","") -> Broker Fee | F6: =IF('BR Workings'!$C$10="N","",'BR Workings'!F40) ->  | J6: 2 | K6: =IF($N$4=1,"",IF(J6<=$L$4,"Dependant "&J6&" - age","")) ->  | L6: <Select> | N6: 1 | O6: =IF(INDIRECT("'BTL Quote History'!C"&P6)="",0,INDIRECT("'BTL Quote History'!C"&P6)) ->  | Q6: =IF('BR Quote History'!C40="",0,'BR Quote History'!C40) -> <Select>
B7: Is Borrower a Ltd Co? | C7: <Select> | D7: =IF(OR(C7="",C7="<Select>",C7="<Complete>"),1,0) -> 1 | J7: 3 | L7: <Select> | N7: 1 | O7: =IF(INDIRECT("'br Quote History'!C"&P7)="","",INDIRECT("'br Quote History'!C"&P7)) -> <Select> | P7: 35 | Q7: =IF('BR Quote History'!C41="",0,'BR Quote History'!C41) -> <Select>
E8: Gross Loan | F8: =IF('BR Workings'!$C$10="N","",'BR Workings'!F43) ->  | J8: 4 | L8: <Select> | N8: 1 | Q8: =IF('BR Quote History'!C42="",0,'BR Quote History'!C42) -> <Select>
B9: Proposed Loan | E9: Monthly / Annual Interest Rate | F9: =IFERROR(IF('BR Workings'!$C$10="N","",'BR Workings'!C41*100&"% / "&'BR Workings'!C41*1200&"%"),"") ->  | J9: 5 | L9: <Select> | N9: 1 | Q9: =IF('BR Quote History'!C43="",0,'BR Quote History'!C43) -> <Select>
B10: Security Type | C10: <Select> | D10: =IF(OR(C10="",C10="<Select>",C10="<Complete>"),1,0) -> 1 | E10: =IF('BR Workings'!C8="S","Monthly Payment","Month 1 Interest (approx)") -> Month 1 Interest (approx) | F10: =IFERROR(IF('BR Workings'!$C$10="N","",'BR Workings'!F46),"") ->  | O10: =IF(INDIRECT("'br Quote History'!C"&P10)="",0,INDIRECT("'br Quote History'!C"&P10)) -> <Select> | P10: 9
B11: Product Type | C11: <Select> | D11: 1 | E11: Interest Over Term (approx) | F11: =IF('BR Workings'!$C$10="N","",'BR Workings'!F47) ->  | H11: Broker Income | K11: Affordability - Monthly Income | O11: <Select> | P11: 10
B12: Payment Type | C12: <Select> | D12: 1 | E12: =IF('BR Workings'!C8="S","","Total Loan (approx inc interest)") -> Total Loan (approx inc interest) | F12: =IFERROR(IF('BR Workings'!C8="S","",'BR Workings'!F48),"") ->  | H12: Commission Rate | I12: =IFERROR(HLOOKUP('BR Workings'!C39,'BR Matrix'!C6:H20,15,FALSE)-'BR Workings'!F58,"") ->  | K12: Applicant 1 | L12: <Complete> | M12: Add the Applicant(s) GUARANTEED income on a 'NET' monthly basis. | N12: =IF(OR(L12="",L12="<Select>",L12="<Complete>"),1,0) -> 1 | O12: <Select> | P12: 11 | Q12: =IF('BR Quote History'!C44="",0,'BR Quote History'!C44) -> <Complete>
B13: Status | C13: <Select> | D13: 1 | E13: LTV | F13: =IFERROR(IF('BR Workings'!$C$10="N","",'BR Workings'!F44),"NO PLAN") ->  | H13: Commission | I13: =IFERROR(I12*F3,"") ->  | K13: Applicant 2 | L13: <Optional> | O13: <Select> | P13: 12 | Q13: =IF('BR Quote History'!C45="",0,'BR Quote History'!C45) -> <Optional>
B14: Rate Type | C14: <Select> | D14: 1 | H14: Broker Fee | I14: =IF('BR Workings'!C10="N","",IF(C18="<Optional>",0,C18)) ->  | K14: GROSS ANNUAL Income | L14: <Complete> | M14: Add the gross annual income for the entire household | N14: 1 | O14: <Select> | P14: 13 | Q14: =IF('BR Quote History'!C46="",0,'BR Quote History'!C46) -> <Complete>
B15: Term (months) | C15: <Complete> | D15: 1 | E15: Approx Legal Fee * | F15: =IF('BR Workings'!C10="N","",'BR Workings'!C75) ->  | H15: Total Income | I15: =IFERROR(I14+I13,"") ->  | O15: <Complete> | P15: 14
C16: =IF(C10="HO Business Loan"," Not Applicable Packaged"," First Time Landlord Packaged") -> First Time Landlord Packaged | E16: Approx Valuation Fee ** | F16: =IF(C23="","",'BR Workings'!C84) -> Add Val | K16: Affordability - Expenditure
B17: ="Net Loan"&IFERROR(IF('BR Workings'!C12="N","",IF('BR Workings'!C25=TRUE," (max removed)"," (max £"&'BR Workings'!C44/1000&"k)")),"") -> Net Loan | C17: <Complete> | D17: =IF(OR(C17="",C17="<Select>",C17="<Complete>"),1,0) -> 1 | E17: Prices include VAT ** Additional legal costs may apply, particularly if purchase *** Val fee based on standard residential property | H17: Criteria Highlights | K17: Residential Mortgage(s) Bal | L17: <Complete> | N17: =IF(OR(L17="",L17="<Select>",L17="<Complete>"),1,0) -> 1 | O17: =IF(INDIRECT("'br Quote History'!C"&P17)="",0,INDIRECT("'br Quote History'!C"&P17)) -> <Complete> | P17: 15 | Q17: =IF('BR Quote History'!C47="",0,'BR Quote History'!C47) -> <Complete>
B18: Broker Fee | C18: <Optional> | H18: =IFERROR(IF('BR Workings'!B114=0,"",'BR Workings'!B114),"") ->  | K18: Resi Mort/Rent Pmt | L18: <Complete> | N18: 1 | O18: =IF(INDIRECT("'br Quote History'!C"&P18)="",0,INDIRECT("'br Quote History'!C"&P18)) -> <Optional> | P18: 16 | Q18: =IF('BR Quote History'!C48="",0,'BR Quote History'!C48) -> <Complete>
B19: Lender Fee | C19: =IFERROR(IF(C17="","",'BR Workings'!C58),"") -> 0 | H19: =IFERROR(IF('BR Workings'!B115=0,"",'BR Workings'!B115),"") ->  | K19: BTL Loan shortfall | L19: =IFERROR(IF(F28="Fits Rent",0,F28),"") ->  | O19: =IF(INDIRECT("'br Quote History'!C"&P19)="",0,INDIRECT("'br Quote History'!C"&P19)) -> 0 | P19: 17
B20: ="Title Insurance"&IF(C20=0," (NA)","") -> Title Insurance | C20: =IF(C17="","",IFERROR('BR Workings'!C66,"")) ->  | H20: =IFERROR(IF('BR Workings'!B116=0,"",'BR Workings'!B116),"") -> 
H21: =IFERROR(IF('BR Workings'!B117=0,"",'BR Workings'!B117),"") ->  | K21: Affordability - Remaining Commitments
B22: Property Details | E22: Rental Calculations | H22: =IFERROR(IF('BR Workings'!B118=0,"",'BR Workings'!B118),"") ->  | K22: Credit Cards | L22: <Optional> | M22: 3% of balance | Q22: =IF('BR Quote History'!C49="",0,'BR Quote History'!C49) -> <Optional>
B23: Value | C23: <Complete> | D23: =IF(OR(C23="",C23="<Select>",C23="<Complete>"),1,0) -> 1 | E23: =IF('BR Workings'!C8="S","Max MT CMI on Rent","NA - Rolled") -> NA - Rolled | F23: =IF(OR('BR Workings'!C10="N",'BR Workings'!C16="Y"),"",(((C26+IF(C27="<Optional>",0,C27))/'BR Workings'!C70)-IF(D35=0,0,F25))) ->  | H23: =IFERROR(IF('BR Workings'!B119=0,"",'BR Workings'!B119),"") ->  | K23: Unsecured Credit | L23: <Optional> | O23: =IF(INDIRECT("'br Quote History'!C"&P23)="",0,INDIRECT("'br Quote History'!C"&P23)) -> <Complete> | P23: 18 | Q23: =IF('BR Quote History'!C50="",0,'BR Quote History'!C50) -> <Optional>
B24: Location | C24: <Select> | D24: 1 | E24: MT Proposed CMI | F24: =F10 ->  | H24: =IFERROR(IF('BR Workings'!B120=0,"",'BR Workings'!B120),"") ->  | K24: School Fees/Childcare/Other | L24: <Optional> | O24: =IF(INDIRECT("'br Quote History'!C"&P24)="",0,INDIRECT("'br Quote History'!C"&P24)) -> <Select> | P24: 19 | Q24: =IF('BR Quote History'!C51="",0,'BR Quote History'!C51) -> <Optional>
B25: Type | C25: <Select> | D25: 1 | E25: ="1st Charge" &IF('BR Workings'!K48="Y"," (Stressed)","") -> 1st Charge (Stressed) | F25: =IF('BR Workings'!C10="N","",'BR Workings'!K49) ->  | H25: =IFERROR(IF('BR Workings'!B121=0,"",'BR Workings'!B121),"") ->  | K25: =IF('BR Workings'!C16="Y","Resi and new pmt","") ->  | L25: =IFERROR(IF('BR Workings'!C16="Y",F10+C35,0),"") -> 0 | O25: =IF(INDIRECT("'br Quote History'!C"&P25)="",0,INDIRECT("'br Quote History'!C"&P25)) -> <Select> | P25: 20
B26: Rental Income | C26: <Complete> | D26: =IF(AND('BR Workings'!C16="N",C12<>"Rolled",OR(C26="",C26="<Select>",C26="<Complete>")),1,0) -> 1 | E26: ="Tot Secured CMIs" &IF('BR Workings'!K48="Y"," (Stressed)","") -> Tot Secured CMIs (Stressed) | F26: =IFERROR(F24+F25,"") ->  | H26: ='BR Workings'!M63 -> Title Insurance is available | K26: Total Credit Commitments | L26: =SUM(L22:L25) -> 0 | O26: =IF(INDIRECT("'br Quote History'!C"&P26)="",0,INDIRECT("'br Quote History'!C"&P26)) -> <Complete> | P26: 21
B27: Rental Surplus | C27: <Optional> | E27: ="DSCR" &IF('BR Workings'!K48="Y"," (Stressed)","") -> DSCR (Stressed) | F27: =IFERROR(ROUNDDOWN(SUM((C26+IF(C27="<Optional>",0,C27))/(F26)),4),"") ->  | O27: =IF(INDIRECT("'br Quote History'!C"&P27)="",0,INDIRECT("'br Quote History'!C"&P27)) -> <Optional> | P27: 22
B28: Is Property Leasehold? | C28: <Complete> | D28: =IF(OR(C28="",C28="<Select>",C28="<Complete>"),1,0) -> 1 | E28: ="Rent Shortfall" &IF('BR Workings'!K48="Y"," (Stressed)","") -> Rent Shortfall (Stressed) | F28: =IF(OR('BR Workings'!C10="N",'BR Workings'!C16="Y"),"",IF(F24-F23<=0,"Fits Rent",(F24-F23)*'BR Workings'!C70)) ->  | H28: Notes | K28: =IF('BR Workings'!C175>0,"Affordability - Outstanding","Affordability - Decision") -> Affordability - Outstanding | O28: =IF(INDIRECT("'br Quote History'!C"&P28)="","",INDIRECT("'br Quote History'!C"&P28)) -> <Complete> | P28: 36
G29: 1 | H29: =IFERROR(VLOOKUP(G29,'BR Workings'!$B$125:$D$137,3,FALSE),'BR Workings'!E162) -> Complete all inputs | J29: =IF('BR Workings'!C175=0,"",1) -> 1 | K29: =IF('BR Workings'!C175>0,IFERROR(VLOOKUP(J29,'BR Workings'!$C$171:$D$174,2,FALSE),""),"Total Outgoings") -> Complete household size | L29: =IF('BR Workings'!C175>0,"",IFERROR(IF('BR Workings'!C16="Y",L26,L18+L19+L26),"")) -> 
B30: ="First Charge Details"&IF('BR Workings'!C6=2,""," (not applicable)") -> First Charge Details (not applicable) | D30: =SUM(D31:D35) -> 0 | E30: Maximum Loan Calculator | G30: 2 | H30: =IFERROR(VLOOKUP(G30,'BR Workings'!$B$125:$D$137,3,FALSE),'BR Workings'!E163) ->  | J30: =IF(OR(J29='BR Workings'!$C$175,J29=""),"",J29+1) -> 2 | K30: =IF('BR Workings'!C175>0,IFERROR(VLOOKUP(J30,'BR Workings'!$C$171:$D$174,2,FALSE),""),"Total Net Income") -> Add household income | L30: =IF('BR Workings'!C175>0,"",L12+IF(L13="<Optional>",0,L13)) -> 
B31: Repayment Type | C31: <Select> | D31: =IF(OR(C31="",C31="<Select>",C31="<Complete>"),0,1) -> 0 | E31: Max LTV Available | F31: =IFERROR('BR Workings'!D36,"") ->  | G31: 3 | H31: =IFERROR(VLOOKUP(G31,'BR Workings'!$B$125:$D$137,3,FALSE),'BR Workings'!E164) ->  | J31: =IF(OR(J30='BR Workings'!$C$175,J30=""),"",J30+1) -> 3 | K31: =IF('BR Workings'!C175>0,IFERROR(VLOOKUP(J31,'BR Workings'!$C$171:$D$174,2,FALSE),""),"Outcome") -> Add mortgage details | L31: =IF('BR Workings'!C175>0,"",'BR Workings'!C167) ->  | O31: =IF(INDIRECT("'br Quote History'!C"&P31)="","",INDIRECT("'br Quote History'!C"&P31)) -> <Select> | P31: 23
B32: Rate Type (remaining fix) | C32: <Select> | D32: =IF(OR(C32="",C32="<Select>",C32="<Complete>"),0,1) -> 0 | E32: Max Lending (net) | F32: =IFERROR(IF('BR Workings'!C3="B",'BR Workings'!C109,'BR Workings'!J109),"") ->  | G32: 4 | H32: =IFERROR(VLOOKUP(G32,'BR Workings'!$B$125:$D$137,3,FALSE),'BR Workings'!E165) ->  | J32: =IF(OR(J31='BR Workings'!$C$175,J31=""),"",J31+1) -> 4 | K32: =IF('BR Workings'!C175>0,IFERROR(VLOOKUP(J32,'BR Workings'!$C$171:$D$174,2,FALSE),""),"") -> A valid MT loan quote | O32: =IF(INDIRECT("'br Quote History'!C"&P32)="","",INDIRECT("'br Quote History'!C"&P32)) -> <Select> | P32: 24
B33: Remaining Term (m) | C33: <Complete> | D33: 0 | E33: Max LTV Due To: | G33: 5 | H33: =IFERROR(VLOOKUP(G33,'BR Workings'!$B$125:$D$137,3,FALSE),'BR Workings'!E166) ->  | O33: =IF(INDIRECT("'br Quote History'!C"&P33)="","",INDIRECT("'br Quote History'!C"&P33)) -> <Complete> | P33: 25
B34: Balance | C34: <Complete> | D34: 0 | E34: =IFERROR('BR Workings'!F36,"") ->  | G34: 6 | H34: =IFERROR(VLOOKUP(G34,'BR Workings'!$B$125:$D$137,3,FALSE),'BR Workings'!E167) ->  | O34: =IF(INDIRECT("'br Quote History'!C"&P34)="","",INDIRECT("'br Quote History'!C"&P34)) -> <Complete> | P34: 26
B35: Monthly Payment | C35: <Complete> | D35: 0 | G35: 7 | H35: =IFERROR(VLOOKUP(G35,'BR Workings'!$B$125:$D$137,3,FALSE),'BR Workings'!E168) ->  | O35: =IF(INDIRECT("'br Quote History'!C"&P35)="","",INDIRECT("'br Quote History'!C"&P35)) -> <Complete> | P35: 27
H36: =IF('BR Workings'!C3="D",VLOOKUP(1,'BR Workings'!M58:S61,7,FALSE),"") -> 
B38: Tick boxes | C38: FALSE
B39: 1st time LL | C39: FALSE | O39: =IF(INDIRECT("'br Quote History'!C"&P39)="",0,INDIRECT("'br Quote History'!C"&P39)) -> FALSE | P39: 29
B40: Packaged | C40: FALSE | O40: FALSE | P40: 30
B41: B fee UF | C41: FALSE | O41: FALSE | P41: 31
B42: L fee UF | C42: FALSE | O42: FALSE | P42: 32
B43: Add TI | C43: FALSE | O43: FALSE | P43: 33
B44: Del Max | C44: FALSE | O44: FALSE | P44: 34
B45: Bridge Extension | C45: FALSE | O45: =IF(INDIRECT("'br Quote History'!C"&P45)="",0,INDIRECT("'br Quote History'!C"&P45)) -> FALSE | P45: 64

Sheet Bridge Heads of Terms
B3: ="Date: " -> Date:
B4: =INDIRECT("'BR Quote History'!e3") -> 00:00:00
B6: Introducer Name:
B8: Heads of Terms
B10: Thank you for your enquiry. We are pleased to confirm that based on the information provided to us, the application is acceptable in principle and this outlines the facility that we may be able to provide together with some of the terms and conditions that will apply.
B12: Applicant Name: | C12: =IF('Bridge Quote'!C3="","",'Bridge Quote'!C3) -> <Complete> | F12: Change | G12: =INDIRECT("'BR Quote History'!d4") -> N
B13: If the application is being made by a Limited Company, please note that all directors/shareholders in the business will need to provide a personal guarantee. Also a debenture over the property.
B14: Security Address: | C14: =IF('Bridge Quote'!C5="","Not Stated",'Bridge Quote'!C5) -> <Complete>
B16: Advised Estimated Valuation of: | C16: ='Bridge Quote'!C23 -> <Complete>
B17: Other Security Address:
B19: Advised Estimated Valuation of: | C19: £
B21: Product: | C21: ='BR Workings'!C49 -> <Select> - <Select> - <Select> - <Select>
B22: Loan Term: | C22: ='Bridge Quote'!C15 & " months " -> <Complete> months
B23: =IF('BR Workings'!C40="FFT","Monthly / Annual Interest Rate (fixed for term):","Monthly / Annual Interest Rate (variable):") ->  | C23: =IFERROR('BR Workings'!C41*100& "%"&" / "&'BR Workings'!C41*1200& "%","") -> 
B24: Net Loan: | C24: ='Bridge Quote'!F3 -> 
B25: ="Lender Fee - "&IF('Bridge Quote'!C42=FALSE," added to the loan:"," payable up front:") -> Lender Fee - added to the loan: | C25: ='Bridge Quote'!F4 -> 
B26: ="Broker Fee - "&IF('Bridge Quote'!C41=FALSE," added to the loan:"," payable up front:") -> Broker Fee - added to the loan: | C26: ='Bridge Quote'!F6 -> 
B27: =IF('BR Workings'!C66=0,"Title Insurance (not available)","Title Insurance" &IF('Bridge Quote'!C43=FALSE," (not taken)",IF('Bridge Quote'!C42=FALSE," - added to the loan:"," - payable up front:"))) ->  | C27: =IF(B27="","",'Bridge Quote'!F5) -> 
B28: Gross Loan: | C28: ='Bridge Quote'!F8 -> 
B29: Where detailed below, fees are included in the gross loan amount and will be deducted from the advance on completion
B30: Repayment Method: | C30: =IF('Bridge Quote'!C12="","",'Bridge Quote'!C12) -> <Select>
B31: =IF('BR Workings'!C8="R","Rolled Interest (Approximate):", "Monthly Interest (repayment)") -> Monthly Interest (repayment) | C31: =IF('BR Workings'!C8="R",'BR Workings'!F47,'Bridge Quote'!F10) -> 
B32: =IF('BR Workings'!C8="R","", "Monthly serviced interest payments will cover interest only, the full capital balance will not be reduced throughout the term. ") -> Monthly serviced interest payments will cover interest only, the full capital balance will not be reduced throughout the term. | C32: =IF('BR Workings'!C8="R","","(Payable by Direct Debit)") -> (Payable by Direct Debit)
B34: Total Repayable at the End of the Loan Term including Discharge Fee (Approximate): | C34: ='BR Workings'!F48+C36 -> 
B35: Early Repayment Charge: | C35: None
B36: Discharge Fee: | C36: 245
B37: Late Redemption Penalty: | C37: 5% of the opening net loan
B39: Fees (if added to the loan these will be deducted from the gross loan amount on completion):
B41: Broker Fee: | C41: ='Bridge Quote'!F6 -> 
B42: =IF(C41=0,"Not applicable",IF('BR Workings'!C22=FALSE,"You have asked for this fee to be added to your loan, it will therefore be interest bearing. This will be deducted from the gross loan on completion and paid to your Broker.", "You have chosen to pay your Broker this fee up front.")) -> You have asked for this fee to be added to your loan, it will therefore be interest bearing. This will be deducted from the gross loan on completion and paid to your Broker.
B43: Lender Fee: | C43: ='Bridge Quote'!F4 -> 
B44: =IF('BR Workings'!C23=FALSE,"You have asked for this fee to be added to your loan, it will therefore be interest bearing. This will be deducted from the gross loan on completion.", "You have chosen to pay this fee up front. This must be paid to us before the loan completes.") -> You have asked for this fee to be added to your loan, it will therefore be interest bearing. This will be deducted from the gross loan on completion.
B45: =IF(B27="","","Title Insurance:") ->  | C45: =IF(B45="","",'Bridge Quote'!F5) -> 
B46: =IF('BR Workings'!C66=0,"Not available on this plan",IF('BR Workings'!C24=FALSE,"Opted out",IF('BR Workings'!C23=FALSE,"You have asked for this fee to be added to your loan, it will therefore be interest bearing. This will be deducted from the gross loan on completion.", "You have chosen to pay this fee up front. This must be paid to us before the loan completes."))) -> 
B47: Valuation Fee, only payable if does not pass AVM: (not included in gross loan) | C47: ='Bridge Quote'!F16 -> Add Val
B48: Including VAT. Paid directly to the valuer. Based on the estimated property value
B49: Legal Fee: | C49: ='Bridge Quote'!F15 -> 
B50: =IF('BR Workings'!C6=1,"Including VAT. This fee is for 1st charges Only. Prior to commencement of legal due diligence, the borrowers solicitor"&" will be required to provide our solicitor with an undertaking to pay its accrued legal fees in full, whether or not the loan completes. This fee may change once solicitors are instructed and work has begun.","") -> Including VAT. This fee is for 1st charges Only. Prior to commencement of legal due diligence, the borrowers solicitor will be required to provide our solicitor with an undertaking to pay its accrued legal fees in full, whether or not the loan completes. This fee may change once solicitors are instructed and work has begun.
B51: Commission: | C51: ='Bridge Quote'!I13 -> 
B52: This is the amount we will pay to your broker upon completion. This does not form part of the loan agreement
B54: These Heads of Terms are valid for 14 days from the date of issue
B56: Please note that interest on your loan will be charged on a daily rate based on the actual number of days in any month. As the number of days in a month differ from month to month, we have assumed that there are 30.4 days (365 days/12) in each month for the purpose of this illustration. This means the actual interest charged (and therefore your final repayment instalment) may be higher than illustrated.
B57: This is not a formal loan offer. These figures are based on un-verified information that has been provided to us. Mercantile Trust Ltd will only be able to provide the applicant with a formal loan offer when we are in receipt of and satisfied with the following requirements:
B59: · Fully completed and signed application pack.
B60: · Proof of 6 months' mortgage or rent history (if not on the credit search).
B61: · NIVO ID verification.
B62: · Proof of address for last 3 years
B63: · Valuation required - Full / Drive by / AVM (depending on criteria)
B64: · If the property is currently rented;
B65: o A copy of the most recent Energy Performance Certificate rated E or above.
B66: o Copy of current tenancy agreement(s).
B67: · Confirmation of the exit strategy is required.
B68: · Copy of building insurance schedule with Mercantile Trust Ltd’s interest noted for 1st charges– Reinstatement value required.
B69: · Proof of last month's rent received
B70: All documentation to be emailed to referrals@mercantiletrust.co.uk
B72: Please note the following will be conducted by Mercantile Trust Ltd:
B74: · Pre-Completion call to be completed with all applicants
B75: · Equifax credit search to be conducted on all properties
B77: Valuation: where the applicant is ready to proceed the valuation can be instructed via:
B79: Pure Panel Management: 0191 214 2459 - residential properties only
B80: VAS Panel Management: 01642 262 217 - refurbishment, residential & commercial properties
B82: Solicitors: Mercantile Trust Ltd will instruct solicitors when our underwriting criteria has been satisfied.
B84: Mercantile Trust Ltd is unable to lend where this mortgage would become a regulated mortgage contract under current FCA rules.
B86: Property Type: Mercantile Trust Ltd will consider loans on all types of residential properties although certain properties may have LTV restrictions imposed. Please refer to our current matrix. The property types outlined below are ineligible for our product range.
B87: · A property that is non-traditional and not suitable to the area
B88: · Grade I or II* (star) listed properties.
B89: · Shared ownership/Housing Association properties
B90: · Properties valued at less than £75,000
B91: · Maximum LTVs apply for the following: Freehold Flats max LTV 65%, Ex Local Authority flats/maisonettes under £150k max LTV 65%, Properties over £1.5m max LTV 65%, Properties over £1m max LTV 70%.
B92: · Properties where potential environmental damage exists
B93: · Leasehold properties with less than 50 years remaining

Sheet BR Drop Downs (hidden)
A1: Highlighted are lookups from dropdowns
B2: Purpose | C2: Security Type | D2: Status | E2: Plan status | F2: Product Type | G2: Charge | H2: Rate Type | I2: Fix Term(m) | J2: Fix Code | K2: Service Type | L2: Repayment | M2: 1st Rate Type | N2: Y/N | O2: Dependants | P2: Dependant Age | Q2: Term
B3: <Select> | C3: <Select> | D3: <Select> | F3: <Select> | H3: <Select> | K3: <Select> | L3: <Select> | M3: <Select> | N3: <Select> | O3: <Select> | P3: <Select> | Q3: <Select>
B4: Purchase | C4: BTL | D4: 0 Status | E4: 0 | F4: Second Charge | G4: 2 | H4: Variable | I4: 0 | J4: V | K4: Rolled | L4: I/Only | M4: Variable | N4: Yes | O4: 0 | P4: 0 | Q4: 1
B5: Refurbishment | C5: HMO | D5: 1 Status | E5: 1 | F5: Equitable Charge | G5: 2 | H5: Fixed for Term | I5: 18 | J5: FFT | K5: Serviced | L5: Repayment | M5: Fixed < 5Yr | N5: No | O5: 1 | P5: 1 | Q5: 2
B6: Consolidation | C6: Holiday Let | D6: 2 Status | E6: 2 | F6: =IF('BR Workings'!C16="Y","","First Charge Purchase") -> First Charge Purchase | G6: 1 | M6: Fixed => 5Yr | O6: 2 | P6: 2 | Q6: 3
B7: Business | C7: Student Let | F7: =IF('BR Workings'!C16="Y","","First Charge Refinance") -> First Charge Refinance | G7: 1 | O7: 3 | P7: 3 | Q7: 4
B8: Lease extension | C8: MUFB | F8: =IF('BR Workings'!C16="Y","","First Charge Unencumbered") -> First Charge Unencumbered | G8: 1 | O8: 4 | P8: 4 | Q8: 5
B9: Other | C9: =IF('BR Workings'!D76="Yes","","HO Business Loan") -> HO Business Loan | O9: 5 | P9: 5 | Q9: 6
P10: 6 | Q10: 7
P11: 7 | Q11: 8
P12: 8 | Q12: 9
P13: 9 | Q13: 10
P14: 10 | Q14: 11
P15: 11 | Q15: 12
P16: 12 | Q16: 13
P17: 13 | Q17: 14
P18: 14 | Q18: 15
P19: 15 | Q19: 16
P20: 16 | Q20: 17
P21: 17 | Q21: 18

Sheet BR Workings (hidden)
B2: Inputs | G2: Publishing Calculator
B3: Broker / Direct | C3: B
B4: Location | C4: =LEFT('Bridge Quote'!C24) -> <
B5: Purchase | C5: =IF(ISERROR(FIND("Purchase",'Bridge Quote'!C11)),"N","Y") -> N
B6: Charge | C6: =IFERROR(VLOOKUP('Bridge Quote'!C11,'BR Drop Downs'!F4:G10,2,FALSE),1) -> 1
B7: Status | C7: =VLOOKUP('Bridge Quote'!C13,'BR Drop Downs'!D4:E10,2,FALSE) ->  | J7: After publishing non-macro ensure you save-as type
B8: Repayment basis | C8: =LEFT('Bridge Quote'!C12) -> < | J8: Excel workbook (NOT macro-enabled)
B9: Term | C9: ='Bridge Quote'!C15 -> <Complete>
B10: Inputs Complete | C10: =IF(OR(C18="Y",C11="N",C13="N",C12="N",'Bridge Quote'!D17=1,SUM('Bridge Quote'!D23:D28)>0),"N","Y") -> N
B11: 1st Charge comp | C11: =IF(AND(C6=2,'Bridge Quote'!D30<>5),"N","Y") -> Y
B12: Plan Type Complete | C12: =IF(SUM('Bridge Quote'!D10:D15)>0,"N","Y") -> N
B13: 1st Charge deleted | C13: =IF(AND(C6=1,'Bridge Quote'!D30<>0),"N","Y") -> Y | D13: if is a 1st charge and prev mortgage details still there
B14: Equitable Charge | C14: =IF('Bridge Quote'!C11="Equitable Charge","Y","N") -> N
B15: Eq Ch Error | C15: =IF(AND(C14="Y",OR(C4="S",C4="N")),"Y","N") -> N | D15: Not Scotland or NI
B16: Is HOBL | C16: =IF('Bridge Quote'!C10="HO Business Loan","Y","N") -> N
B17: HOBL Min Loan | C17: ='BR Matrix'!F22 -> 25000
B18: HOBL error | C18: =IF(AND(C16="Y",C6=1),"Y","N") -> N | D18: Second charge only
B19: Tick boxes
B20: 1st time LL | C20: ='Bridge Quote'!C39 -> FALSE
B21: Packaged | C21: ='Bridge Quote'!C40 -> FALSE
B22: B fee UF | C22: ='Bridge Quote'!C41 -> FALSE
B23: L fee UF | C23: ='Bridge Quote'!C42 -> FALSE
B24: Add TI | C24: ='Bridge Quote'!C43 -> FALSE
B25: Del Max | C25: ='Bridge Quote'!C44 -> FALSE | D25: 10000000
B26: Bridge Extension | C26: ='Bridge Quote'!C45 -> FALSE
B27: Max LTVs
E28: Max LTV index | F28: Reason | I28: Value
B29: LTV Restrictions | C29: This App | D29: LTV | E29: 0 | G29: Prop Type | H29: LTV | I29: 0 | J29: 150000 | K29: Country | L29: LTV | M29: Prop Value | N29: LTV | O29: 1st time LL | Q29: Equitable Charge
B30: Plan | C30: =C39 ->  | D30: =HLOOKUP(C30,'BR Matrix'!C6:H21,2,FALSE) ->  | E30: =E29+IF(D30=$D$36,1,0) ->  | F30: Plan max | G30: Ex C'cil Flat / Mais | H30: =IF(C33>=J29,J30,I30) -> 1 | I30: 0.65 | J30: 1 | K30: England | L30: 1 | M30: 0 | N30: 1 | O30: TRUE | P30: 0.65 | Q30: Equitable Charge | R30: 0.7
B31: Country | C31: ='Bridge Quote'!C24 -> <Select> | D31: =VLOOKUP(C31,K30:L33,2,FALSE) ->  | F31: Property in NI | G31: Freehold Flat | H31: 0.65 | K31: Wales | L31: 1 | M31: 1000001 | N31: 0.7 | O31: FALSE | P31: 1 | Q31: 0 | R31: 1
B32: Prop Type | C32: ='Bridge Quote'!C25 -> <Select> | D32: =VLOOKUP(C32,G30:H34,2,FALSE) ->  | F32: Property type | G32: All other properties | H32: 1 | K32: Scotland | L32: 1 | M32: 1500001 | N32: 0.65
B33: Prop Value | C33: ='Bridge Quote'!C23 -> <Complete> | D33: =VLOOKUP(C33,M30:N32,2,TRUE) ->  | F33: Property value | K33: Northern Ireland | L33: 1
B34: 1st time LL | C34: =IF(C16="Y",FALSE,'BR Workings'!C20) -> FALSE | D34: =VLOOKUP(C34,O30:P31,2,FALSE) -> 1 | F34: First time landlord
B35: Equitable Charge | C35: ='Bridge Quote'!C11 -> <Select> | D35: =IFERROR(VLOOKUP(C35,Q30:R34,2,FALSE),1) -> 1 | F35: Equitable Charge
B36: Max LTV this Plan | D36: =MIN(D30:D35) ->  | E36: Final Reason | F36: =VLOOKUP(1,E30:F35,2,FALSE)&IF(E35>1,"; "&VLOOKUP(2,E30:F35,2,FALSE)&IF(E35>2,"; "&VLOOKUP(3,E30:F35,2,FALSE)&IF(E35>3,"; "&VLOOKUP(4,E30:F35,2,FALSE)&IF(E35>5,"; "&VLOOKUP(5,E30:F35,2,FALSE),""),""),""),"") -> 
B38: This Plan | I38: Amount Errors
B39: Plan Code | C39: =C6&"-"&C7 ->  | E39: Net | F39: =IF('Bridge Quote'!D17=1,0,'Bridge Quote'!C17) -> 0 | G39: Included | I39: Net under min | J39: =IF(AND(F39<C43,F39<>0),"Y","N") -> 
B40: Fix Code | C40: =VLOOKUP('Bridge Quote'!C14,'BR Drop Downs'!H4:J12,3,FALSE) ->  | E40: Broker fee | F40: =IF(C3="D",0,IF('Bridge Quote'!C18="<Optional>",0,'Bridge Quote'!C18)) -> 0 | G40: =IF(C22=TRUE,0,F40) -> 0 | I40: Net over max | J40: =IF(F39>C44,"Y","N") -> 
B41: Plan Rate | C41: =IF(J42="Y","No PLAN",HLOOKUP(C39,'BR Matrix'!C6:H21,VLOOKUP(C40,'BR Matrix'!A11:I24,9,FALSE),FALSE)) ->  | E41: Lender Fee | F41: ='Bridge Quote'!F4 ->  | G41: =IF(C23=TRUE,0,F41) ->  | I41: Broker fee high | J41: =IF(OR(F40>K41,F40>(F39*L41)),"Y","N") -> N | K41: 10000 | L41: 0.15
E42: Title Insurance | F42: =C64 -> 0 | G42: =IF(C23=TRUE,0,F42) -> 0 | I42: Any Error | J42: =IF(COUNTIF(J39:J41,"Y")>0,"Y","N") -> N
B43: Min Loan | C43: =IF(C25=TRUE,0,IF(C16="Y",C17,HLOOKUP(C39,'BR Matrix'!C6:H9,3,FALSE))) ->  | E43: Gross | F43: =SUM(F39,G40:G42) -> 0
B44: Max Loan | C44: =IF(C25=TRUE,D25,C55) ->  | E44: LTV | F44: =ROUNDUP((F48+IF('Bridge Quote'!D34=0,0,'Bridge Quote'!C34))/C33,4) -> 
B45: Fix term | C45: =VLOOKUP('Bridge Quote'!C14,'BR Drop Downs'!H4:I12,2,FALSE) ->  | E45: Over Max LTV | F45: =IF(F44>D36,1,0) -> 
E46: Monthly payment | F46: =ROUND(F43*C41,IF(C8="R",0,2)) ->  | G46: (Month 1 int)
E47: Interest over term | F47: =IFERROR(IF(C8="R",ROUNDUP(F43*((1+C41)^'Bridge Quote'!C15)-F43,0),F46*'Bridge Quote'!C15),"") ->  | I47: Stress on 1st payment
E48: Total Loan | F48: =F43+IF(C8="S",0,F47) ->  | I48: Stress applicable | K48: =IF('Bridge Quote'!C32<>"Fixed => 5Yr","Y","N") -> Y
B49: Full Plan Name | C49: ='Bridge Quote'!C10&" - "&'Bridge Quote'!C11&" - "&'Bridge Quote'!C12&" - "&'Bridge Quote'!C13 -> <Select> - <Select> - <Select> - <Select> | I49: Stressed Payment | K49: =IFERROR(IF(K48="N",'Bridge Quote'!C35,ROUND(IF('Bridge Quote'!C31="Repayment",PMT(RATE('Bridge Quote'!C33,'Bridge Quote'!C35,-'Bridge Quote'!C34)+(C71/12),'Bridge Quote'!C33,-'Bridge Quote'!C34),'Bridge Quote'!C34*(('Bridge Quote'!C35/'Bridge Quote'!C34)+(C71/12))),2)),0) -> 0
B51: Max Loan Amounts
B52: Plan Max Loan | C52: =HLOOKUP(C39,'BR Matrix'!C6:H21,4,FALSE) -> 
B53: NI Max Loan | C53: =IF(C4="N",D53,10000000) -> 10000000 | D53: =HLOOKUP(C39,'BR Matrix'!B6:H21,16,FALSE) -> 
B54: Eq Charge Max Loan | C54: =IF(C14="Y",D54,10000000) -> 10000000 | D54: 100000
B55: Lowest | C55: =MIN(C52:C54) -> 
B57: Lender Fees | C57: Applies | D57: (broker only) | F57: Commission Offset | G57: Broker | H57: Applies | I57: £ | J57: Applies | K57: % | L57: Direct | M57: Applies | N57: Net under | O57: Net from | P57: £ | Q57: % | R57: Total | S57: Wording
B58: This plan lender fee | C58: =C60+(F39*C59) -> 0 | F58: 0 | G58: Basic | J58: =IF($C$14="N",K58,0) -> 0.03 | K58: 0.03 | M58: =IF(AND($M$61<>1,$F$39<N58),1,0) -> 1 | N58: 20000 | O58: 0 | P58: 1499 | Q58: 0.01 | R58: =($F$39*Q58)+P58 -> 1499 | S58: =IF(M58=1,"Standard lender fee: £"&IF(F39=0,"TBA",ROUND(R58,2)&" (£"&ROUND(Q58*$F$39,2)&" + £"&P58&")"),"") -> Standard lender fee: £TBA
B59: Fixed | C59: =SUM(J58:J61)-F58 -> 0.03 | F59: Enter % to take off commission to reduce lender fee | G59: Packaged | H59: =IF(C21=TRUE,I59,0) -> 0 | I59: 999 | M59: =IF(AND($M$61<>1,$F$39<N59,$F$39>=N58),1,0) -> 0 | N59: 100000 | O59: =N58 -> 20000 | P59: 2999 | Q59: 0.01 | R59: =($F$39*Q59)+P59 -> 2999 | S59: =IF(M59=1,"Standard lender fee: £"&ROUND(R59,2)&" (£"&ROUND(Q59*$F$39,2)&" + £"&P59&")","") -> 
B60: £ | C60: =SUM(H58:H61) -> 0 | G60: NI | H60: =IF(AND(C4="N",C6=2),I60,0) -> 0 | I60: 899 | M60: =IF(AND($M$61<>1,$F$39<N60,$F$39>=N59),1,0) -> 0 | N60: 10000000 | O60: =N59 -> 100000 | P60: 3499 | Q60: 0.01 | R60: =($F$39*Q60)+P60 -> 3499 | S60: =IF(M60=1,"Standard lender fee: £"&ROUND(R60,2)&" (£"&ROUND(Q60*$F$39,2)&" + £"&P60&")","") -> 
G61: Equitable Charge | H61: =IF($C$14="Y",I61,0) -> 0 | I61: 499 | J61: =IF($C$14="Y",K61,0) -> 0 | K61: 0.04 | M61: =IF(C26=TRUE,1,0) -> 0 | N61: Bridge Extension | P61: 999 | Q61: 0.01 | R61: =($F$39*Q61)+P61 -> 999 | S61: =IF(M61=1,"Standard lender fee: £"&ROUND(R61,2)&" (£"&ROUND(Q61*$F$39,2)&" + £"&P61&")","") -> 
B63: Title Insurance | I63: TI threshold | J63: Min loan for TI | L63: Reason Not TI | M63: =VLOOKUP(1,L64:M68,2,FALSE) -> Title Insurance is available
B64: This Loan Premium | C64: =IF(C24=TRUE,C66,0) -> 0 | F64: TI Bandings (over) | I64: Second Charge | J64: 999999999 | L64: =IF(AND(C4="N",C68<>"Y"),1,0) -> 0 | M64: Title Insurance NA in Northern Ireland
B65: TI Threshold | C65: =VLOOKUP(C67,I64:J68,2,FALSE) ->  | F65: 0 | G65: 699 | I65: First Charge Purchase | J65: 0 | L65: =IF(AND(C6=2,$F$39<J64),1,0) -> 0 | M65: Title Insurance NA on 2nd charges
B66: Potential Premium | C66: =IF(AND(C4="N",C68<>"Y"),0,IF(F39<C65,0,VLOOKUP(F39,F65:G66,2,TRUE))) ->  | F66: 300000 | G66: 999 | I66: First Charge Refinance | J66: 100000 | L66: =IF(AND($C$67=I66,$F$39<J66),1,0) -> 0 | M66: ="Title Insurance NA on 1st refinance < £"&J66/1000&"k" -> Title Insurance NA on 1st refinance < £100k
B67: Plan Type | C67: ='Bridge Quote'!C11 -> <Select> | I67: First Charge Unencumbered | J67: 100000 | L67: =IF(AND($C$67=I67,$F$39<J67),1,0) -> 0 | M67: ="Title Insurance NA on 1st unencumbered < £"&J67/1000&"k" -> Title Insurance NA on 1st unencumbered < £100k
B68: Available in NI | C68: n | I68: Equitable Charge | J68: 999999999 | L68: =IF(SUM(L64:L67)=0,1,0) -> 1 | M68: Title Insurance is available
B69: Rules | E69: DSCR
B70: Max DSCR | C70: =IF(AND(C20=TRUE,F44>G71),F71,F70) ->  | E70: Normal | F70: 1.25
B71: Stress | C71: 0.01 | E71: 1st time LL > 65% | F71: 1.4 | G71: 0.65
B74: Legal Fees | F74: 1st charge
B75: This plan legal fee | C75: =IF(C6=2,0,IF(AND(C6=1,C4="N"),VLOOKUP(F43,F76:I82,4,TRUE),IF(OR(C5="Y",F39>=100000),VLOOKUP(F39,F76:H82,3,TRUE)+IF(D76="YES",C76,0)+IF(D77="YES",C77,0),0))) -> 0 | F75: Loan min | G75: Loan max | H75: EWS | I75: NI
B76: Limited co | C76: 300 | D76: ='Bridge Quote'!C7 -> <Select> | F76: 0 | G76: 0 | H76: 0 | I76: 0
B77: Leasehold | C77: 300 | D77: ='Bridge Quote'!C28 -> <Complete> | F77: =G76+1 -> 1 | G77: 250000 | H77: =700*1.2 -> 840 | I77: 1489
F78: =G77+1 -> 250001 | G78: 500000 | H78: =800*1.2 -> 960 | I78: 1489
F79: =G78+1 -> 500001 | G79: 750000 | H79: =875*1.2 -> 1050 | I79: 1489
F80: =G79+1 -> 750001 | G80: 1000000 | H80: 1110 | I80: 1489
F81: =G80+1 -> 1000001 | H81: 1200 | I81: 1489
B83: Valuation Fee
B84: This Plan | C84: =IFERROR(VLOOKUP(C88,C90:D97,2,FALSE),IF(D86=1,"Add Val",IF(C4="N","Refer",IF(C4="S",VLOOKUP(C86,L86:N97,3,TRUE),VLOOKUP(C86,F86:H96,3,TRUE))))) -> Add Val | F84: E&W | L84: Scotland
F85: Value min | G85: Value Max | H85: Fee | L85: Value min | M85: Value Max | N85: Fee
B86: Prop Val | C86: ='Bridge Quote'!C23 -> <Complete> | D86: ='Bridge Quote'!D23 -> 1 | F86: 0 | G86: 200000 | H86: 220 | L86: 0 | M86: 100000 | N86: 245
F87: =G86+1 -> 200001 | G87: 300000 | H87: 250 | L87: =M86+1 -> 100001 | M87: 200000 | N87: 285
B88: Plan Type | C88: ='Bridge Quote'!C10 -> <Select> | F88: 300001 | G88: 350000 | H88: 275 | L88: 200001 | M88: 300000 | N88: 335
F89: 350001 | G89: 400000 | H89: 280 | L89: 300001 | M89: 400000 | N89: 400
B90: TBC Val Fee | C90: MUFB | D90: TBC | F90: 400001 | G90: 500000 | H90: 350 | L90: 400001 | M90: 500000 | N90: 475
C91: HMO | D91: TBC | F91: 500001 | G91: 600000 | H91: 490 | L91: 500001 | M91: 600000 | N91: 620
D92: TBC | F92: 600001 | G92: 700000 | H92: 600 | L92: 600001 | M92: 700000 | N92: 630
D93: TBC | F93: 700001 | G93: 800000 | H93: 700 | L93: 700001 | M93: 750000 | N93: 700
D94: TBC | F94: 800001 | G94: 900000 | H94: 775 | L94: 750001 | M94: 800000 | N94: 860
D95: TBC | F95: 900001 | G95: 1000000 | H95: 850 | L95: 800001 | M95: 900000 | N95: 865
D96: TBC | F96: 1000001 | G96: 9999999999 | H96: On request | L96: 900001 | M96: 1000000 | N96: 890
D97: TBC | L97: 1000001 | M97: 999999999 | N97: On request
B99: Max Lending Broker | I99: Max Lending Direct
B100: Max Sec Lending End | C100: =('Bridge Quote'!C23*D36)-IF('Bridge Quote'!D34=0,0,'Bridge Quote'!C34) ->  | I100: Max Sec Lending End | J100: =('Bridge Quote'!C23*D36)-IF('Bridge Quote'!D34=0,0,'Bridge Quote'!C34) -> 
B101: Max Sec Lending Start | C101: =IF(C8="R",ROUNDDOWN(C100/POWER(1+C41,'Bridge Quote'!C15),0),C100) ->  | I101: Max Sec Lending Start | J101: =IF(C8="R",ROUNDDOWN(C100/POWER(1+C41,'Bridge Quote'!C15),0),C100) -> 
B102: Lender fee % | C102: =IF(C23=TRUE,0,IF(C3="B",C59,0)) -> 0.03 | I102: Lender fee % | J102: =IF(C23=TRUE,0,IF(C3="D",IF(C26=TRUE,Q61,VLOOKUP(J101,O58:Q61,3,TRUE)),0)) -> 0
B103: Broker Fee £ | C103: =IF(C22=TRUE,0,F40) -> 0 | I103: Broker Fee £
B104: Lender Fee £ | C104: =IF(C23=TRUE,0,IF(C3="B",H60+H59+H61,F41)) -> 0 | I104: Lender Fee £ | J104: =IF(C23=TRUE,0,IF(C3="D",IF(C26=TRUE,P61,VLOOKUP(J101,O58:Q61,2,TRUE)),0)) -> 0
B105: Title Insurance | C105: =G42 -> 0 | I105: Title Insurance | J105: =G42 -> 0
C106: Lower TI | D106: Higher TI | E106: High Net | J106: Lower TI | K106: Higher TI | L106: High Net
C107: =IF(C105=0,0,G65) -> 0 | D107: =IF(C105=0,0,G66) -> 0 | E107: =F66 -> 300000 | J107: =IF(J105=0,0,N65) -> 0 | K107: =IF(J105=0,0,N66) -> 0 | L107: =F66 -> 300000
B108: Max Adjusted for TI | C108: =MIN(ROUNDDOWN((C101-C103-C104-C107)/(1+C102),0),C44) ->  | D108: =MIN(ROUNDDOWN((C101-C103-C104-D107)/(1+C102),0),C44) ->  | E108: =E107-1 -> 299999 | F108: Different if the loan amount goes over the TI limit | I108: Max Adjusted for TI | J108: =MIN(ROUNDDOWN((J101-J103-J104-J107)/(1+J102),0),C44) ->  | K108: =MIN(ROUNDDOWN((J101-J103-J104-K107)/(1+J102),0),C44) ->  | L108: =L107-1 -> 299999 | M108: Different if the loan amount goes over the TI limit
B109: Max Net | C109: =IF(C108<E107,C108,IF(D108>=E107,D108,E108)) ->  | I109: Max Net | J109: =IF(J108<L107,J108,IF(K108>=L107,K108,L108)) -> 
B111: Criteria Highlights | E111: Serviced | N111: Rolled
B112: Use (this application) | E112: BTL-S | F112: HMO-S | G112: Holiday Let-S | H112: Student Let-S | I112: MUFB-S | J112: HO Business Loan-S | N112: BTL-R | O112: HMO-R | P112: Holiday Let-R | Q112: Student Let-R | R112: MUFB-R | S112: HO Business Loan-R
B113: ='Bridge Quote'!C10&"-"&C8 -> <Select>-< | E113: 2 | F113: 3 | G113: 4 | H113: 5 | I113: 6 | J113: 7 | N113: 11 | O113: =N113+1 -> 12 | P113: =O113+1 -> 13 | Q113: 14 | R113: 15 | S113: 16
B114: =VLOOKUP(D114,$D$114:$S$120,HLOOKUP($B$113,$E$112:$S$113,2,FALSE),FALSE) ->  | D114: 1 | E114: AST required | F114: Licence required or proof applied | G114: If doesn’t have own residence - refer | H114: ASTs required for all tenants | I114: ASTs required for all tenants | J114: Broker must have credit broking permissions | N114: AST required | O114: Licence required or proof applied | P114: If doesn’t have own residence - refer | Q114: ASTs required for all tenants | R114: ASTs required for all tenants | S114: Broker must have credit broking permissions
B115: =VLOOKUP(D115,$D$114:$S$120,HLOOKUP($B$113,$E$112:$S$113,2,FALSE),FALSE) ->  | D115: 2 | E115: Proof of last month's rent | F115: Max 8 beds - refer if more | G115: Use 100% profit on SA3402 or accounts cert | H115: If AST is for uni year - average over 12 months | I115: If over 4 units - refer | J115: No LTD company applications | N115: EPC must be E or better | O115: Max 8 beds - refer if more | P115: AVMs accepted | Q115: LTD company or personal applications | R115: If over 4 units - refer | S115: No LTD company applications
D116: 3 | E116: Can top up with surplus rental | F116: ASTs required for all tenants | G116: If owned less than a year - use 50% of projection | H116: Proof of last month's rent | I116: Full val usually required - AVM on referral | J116: Majority of loan must be for business purposes | N116: LTD company or personal applications | O116: ASTs required for all tenants | P116: Must be on mutiple letting sites | Q116: AVMs accepted | R116: Full val usually required - AVM on referral | S116: Majority of loan must be for business purposes
D117: 4 | E117: Can top up with personal income | F117: Val based on resi value | G117: AVMs accepted | H117: LTD company or personal applications | I117: Proof of last month's rent | J117: 2nd charge only | O117: Val based on resi value | R117: LTD company or personal applications | S117: 2nd charge only
D118: 5 | E118: EPC must be E or better | F118: AVMs accepted | G118: Must be on mutiple letting sites | H118: Can top up with surplus rental | I118: LTD company or personal applications | J118: Minimum loan of 25k | O118: AVMs accepted | S118: Minimum loan of 25k
D119: 6 | E119: LTD company or personal applications | F119: Proof of last month's rent or deposit | H119: Can top up with personal income | I119: Can top up with surplus rental | J119: AVMs accepted | O119: LTD company or personal applications | S119: AVMs accepted
D120: 7 | F120: LTD company or personal applications | H120: AVMs accepted | I120: Can top up with personal income
B121: =IF(C4="N",M121,"") ->  | D121: 8 | L121: NI Only | M121: If a cross charge additional fees may apply
B123: Notes | C123: =SUM(C127:C135) ->  | D123: Total Errors
B124: Index | C124: Applies
B125: =C125 -> 0 | C125: =IF(C18="Y",1,0) -> 0 | D125: HOBL second charge only
B126: =B125+C126 -> 0 | C126: =IF(C15="Y",1,0) -> 0 | D126: Equitable charge England & Wales only
B127: =IF($B$126>0,B126,B126+C127) -> 1 | C127: =IF(AND(C10="N",C128=0),1,0) -> 1 | D127: Complete all inputs
B128: =IF($B$126>0,B127,B127+C128) -> 1 | C128: =IF(C13="N",1,0) -> 0 | D128: Delete 1st charge details
B129: 1 | C129: =IFERROR(F45,0) -> 0 | D129: LTV exceeds max
B130: 1 | C130: =IFERROR(IF(J40="Y",1,0),0) -> 0 | D130: Net loan exceeds max
C131: =IF(J39="Y",1,0) ->  | D131: Net loan below min
C132: =IF(C11="N",1,0) -> 0 | D132: Add 1st charge details
C133: =IF(J41="Y",1,0) -> 0 | D133: Broker fee too high (max 15% net loan / £10k)
C135: =IF(AND(D76="Yes",C16="Y"),1,0) -> 0 | D135: No Ltd Co on HOBL
B139: ONS Calculation | H139: Family Makeup
C140: No | D140: Factor | E140: Score | I140: Adults | J140: ='Bridge Quote'!L3 -> <Select> | K140: Y/O
B141: 1st adult | C141: 1 | D141: =ONS!C7 -> 1 | E141: =D141*C141 -> 1 | I141: No Dep | J141: ='Bridge Quote'!L4 -> <Select>
B142: Other adult | C142: =J140-C141 ->  | D142: =ONS!C8 -> 0.7 | E142: =D142*C142 ->  | H142: 1 | I142: Dep 1 | J142: =IF(H142>$J$141,"",IF(OR('Bridge Quote'!L5="",'Bridge Quote'!L5="<Select>"),"M",'Bridge Quote'!L5)) -> M | K142: =IF(J142="","",IF(J142>ONS!$C$12,"O","Y")) -> O
B143: Older child | C143: =COUNTIF($K$142:$K$146,F143) -> 5 | D143: =ONS!C9 -> 0.67 | E143: =D143*C143 -> 3.35 | F143: O | H143: 2 | I143: Dep 2 | J143: =IF(H143>$J$141,"",IF(OR('Bridge Quote'!L6="",'Bridge Quote'!L6="<Select>"),"M",'Bridge Quote'!L6)) -> M | K143: =IF(J143="","",IF(J143>ONS!$C$12,"O","Y")) -> O
B144: Younger child | C144: =COUNTIF($K$142:$K$146,F144) -> 0 | D144: =ONS!C10 -> 0.33 | E144: =D144*C144 -> 0 | F144: Y | H144: 3 | I144: Dep 3 | J144: =IF(H144>$J$141,"",IF(OR('Bridge Quote'!L7="",'Bridge Quote'!L7="<Select>"),"M",'Bridge Quote'!L7)) -> M | K144: =IF(J144="","",IF(J144>ONS!$C$12,"O","Y")) -> O
B145: Total | E145: =SUM(E141:E144) ->  | H145: 4 | I145: Dep 4 | J145: =IF(H145>$J$141,"",IF(OR('Bridge Quote'!L8="",'Bridge Quote'!L8="<Select>"),"M",'Bridge Quote'!L8)) -> M | K145: =IF(J145="","",IF(J145>ONS!$C$12,"O","Y")) -> O
H146: 5 | I146: Dep 5 | J146: =IF(H146>$J$141,"",IF(OR('Bridge Quote'!L9="",'Bridge Quote'!L9="<Select>"),"M",'Bridge Quote'!L9)) -> M | K146: =IF(J146="","",IF(J146>ONS!$C$12,"O","Y")) -> O
B147: Quintile | C147: =VLOOKUP(I147,ONS!N7:P11,3,TRUE) ->  | H147: Annual income | I147: ='Bridge Quote'!L14 -> <Complete>
B148: Model | C148: =IF(J141>0,ONS!F9,IF(J140>1,ONS!F8,ONS!F7)) -> A56
B149: Lookup | C149: ="Q"&C147&C148 -> 
B151: 1st adult cost | C151: =HLOOKUP(C149,ONS!C16:U18,3,FALSE) -> 
B152: Family cost | C152: =C151*E145 -> 
B153: Buffer | C153: =ONS!C11 -> 150
B154: Total expenditure | C154: =ROUND(SUM(C152:C153),2) -> 
B161: Affordability | E161: Use Wording | H161: Pass Wording | L161: Fail Wording
B162: Requires Affordability | C162: =IF(OR(C8="R",J42="Y"),"N",IF(AND(C10="Y",OR('Bridge Quote'!F28<>"Fits Rent",C16="Y")),"Y","N")) -> N | E162: =IF($C$167="FAIL",L162,IF($C$167="PASS",H162,IF(C167="Rolled","Affordability not required for rolled bridge",C168))) -> Fails rental income - Complete affordability details | H162: This application has passed the affordability | L162: This application has failed the affordability
B163: Stressed shortfall | C163: ='Bridge Quote'!F28 ->  | E163: =IF($C$167="FAIL",L163,IF($C$167="PASS",H163,"")) ->  | H163: decision, and no further documentation is | L163: decision, as the available income is not
B164: Mortgage buffer | C164: =IF('BR Workings'!C16="Y",'Bridge Quote'!C34*'BR Workings'!C71/12,'Bridge Quote'!L17*'BR Workings'!C71/12) ->  | E164: =IF($C$167="FAIL",L164,IF($C$167="PASS",H164,"")) ->  | H164: required to support the affordability on this | L164: sufficient to cover the outgoings detailed, and
B165: Net income | C165: =IF('Bridge Quote'!N4=1,0,'Bridge Quote'!L12)+IF('Bridge Quote'!L13="<Optional>",0,'Bridge Quote'!L13) -> 0 | E165: =IF($C$167="FAIL",L165,IF($C$167="PASS",H165,"")) ->  | H165: application. | L165: based upon national averages, still leave
B166: Surplus | C166: =IF(C16="Y",C184,D184) ->  | E166: =IF($C$167="FAIL",L166,"") ->  | L166: sufficient money to cover all other
B167: Outcome | C167: =IF(C8="R","Rolled",IF(OR(C175>0,C163="Fits Rent"),"TBC",IF(C166>0,"PASS","FAIL"))) -> TBC | E167: =IF($C$167="FAIL",L167,"") ->  | L167: expenditure in a sustainable manner for the
B168: Message | C168: =VLOOKUP(1,H172:I174,2,FALSE) -> Fails rental income - Complete affordability details | E168: =IF($C$167="FAIL",L168,"") ->  | L168: life of the loan.
B170: Affordability Outstanding | C170: 0 | H170: Affordability message
B171: Household | C171: =C170+IF(OR(J140=0,J140="<Select>",J141="<Select>",J141="",COUNTIF(J142:J146,"M")>0),1,0) -> 1 | D171: Complete household size | H171: Use
B172: Income | C172: =C171+IFERROR(IF(OR(C165=0,I147=0),1,0),1) -> 2 | D172: Add household income | H172: =IF(C16="Y",1,0) -> 0 | I172: HOBL - Complete affordability details
B173: Mortgage | C173: =C172+IF(C16="Y",0, IF(AND('Bridge Quote'!L18<>"",'Bridge Quote'!L18<>"<Complete>",'Bridge Quote'!L17<>"",'Bridge Quote'!L17<>"<Complete>"),0,1)) -> 3 | D173: Add mortgage details | H173: =IF(C163="Fits Rent",1,0) -> 0 | I173: Fits on rental income
B174: Valid Loan | C174: =C173+IF('Bridge Quote'!F10="",1,0) -> 4 | D174: A valid MT loan quote | H174: =IF(SUM(H172:H173)=0,1,0) -> 1 | I174: Fails rental income - Complete affordability details
C175: =C174 -> 4
B177: Affordability Calculation | C177: HOBL | D177: Other
B178: Income | C178: ='Bridge Quote'!L12+IF('Bridge Quote'!L13="<Optional>",0,'Bridge Quote'!L13) ->  | D178: =C178 -> 
B179: Resi Mort / rent | C179: 0 | D179: ='Bridge Quote'!L18 -> <Complete>
B180: Total cred commitments | C180: ='Bridge Quote'!$L$26 -> 0 | D180: ='Bridge Quote'!$L$26 -> 0
B181: Mortgage buffer | C181: =$C$164 ->  | D181: =$C$164 -> 
B182: BTL Loan shortfall | C182: 0 | D182: ='Bridge Quote'!L19 -> 
B183: ONS | C183: =$C$154 ->  | D183: =$C$154 -> 
B184: Surplus | C184: =C178-SUM(C179:C183) ->  | D184: =D178-SUM(D179:D183) -> 
B186: HyperLinks for non-macro version
C187: Header | F187: Br Quote | I187: Br HOT / Matrix | K187: BTL Quote | N187: BTL HOT / Matrix
C188: Quote | F188: Home | I188: Home | K188: Home | N188: Home
C190: Matrix | F190: Heads of Terms | I190: Quote | K190: Heads of Terms | N190: Quote
C192: Quote
C194: Matrix

Sheet BR Matrix
B2: Bridge Product Matrix
B3: Security | C3: 1st charge | F3: 2nd charge
B4: Charge | C4: 1 | D4: 1 | E4: 1 | F4: 2 | G4: 2 | H4: 2
B5: Status | C5: 0 | D5: 1 | E5: 2 | F5: 0 | G5: 1 | H5: 2
B6: Plan code (charge-status) | C6: =C4&"-"&C5 -> 1-0 | D6: =D4&"-"&D5 -> 1-1 | E6: 1-2 | F6: 2-0 | G6: 2-1 | H6: 2-2
B7: Max LTV | C7: 0.75 | D7: 0.75 | E7: 0.7 | F7: 0.75 | G7: 0.75 | H7: 0.7
B8: Min Net | C8: 25000 | D8: 25000 | E8: 25000 | F8: 25000 | G8: 25000 | H8: 25000
B9: Max Net | C9: 500000 | D9: 500000 | E9: 250000 | F9: 500000 | G9: 300000 | H9: 100000
A10: Code | B10: Rates | I10: Lookup
A11: V | B11: Variable | C11: 0.0097 | D11: 0.0099 | E11: 0.0101 | F11: 0.0099 | G11: 0.0101 | H11: 0.0103 | I11: =ROW(H11)-ROW($H$6)+1 -> 6
A12: FFT | B12: FFT | C12: 0.0099 | D12: 0.0101 | E12: 0.0103 | F12: 0.0101 | G12: 0.0103 | H12: 0.0105 | I12: =ROW(H12)-ROW($H$6)+1 -> 7
B19: Other
B20: ="Commission"&IF(B23<>0,"*","") -> Commission | C20: 0.02 | D20: 0.02 | E20: 0.02 | F20: 0.02 | G20: 0.02 | H20: 0.02
B21: NI Max Net | C21: 150000 | D21: 150000 | E21: 150000 | F21: 150000 | G21: 150000 | H21: =H9 -> 100000
B22: HOBL Min Net | F22: 25000 | G22: Second Charge only
B23: ='BR Workings'!F58 -> 0 | C23: =IF(B23<>0,"* This commission will be reduced by "&B23*100&"% to offset the lender fee","") -> 

Sheet BTL Quote
N1: Broker / Direct | O1: ='BR Workings'!C3 -> B
B2: Applicant Details | E2: Loan Outputs | H2: Term Loan Calculator | K2: Affordability - Household Size | N2: Completed | O2: Inputs | P2: Hist row | Q2: Afford inputs
B3: Applicant Name | C3: <Complete> | D3: =IF(OR(C3="",C3="<Select>",C3="<Complete>"),1,0) -> 1 | E3: Net Loan | F3: =IF('BTL Workings'!$C$10="N","",'BTL Workings'!F39) ->  | K3: Number of Adults | L3: <Select> | M3: Add the relevant number of Adults/Dependants living in the property. | N3: =IF(OR(L3="",L3="<Select>",L3="<Complete>"),1,0) -> 1 | O3: =IF(INDIRECT("'BTL Quote History'!C"&P3)="","",INDIRECT("'BTL Quote History'!C"&P3)) -> <Complete> | P3: 7 | Q3: =IF('BTL Quote History'!C37="",0,'BTL Quote History'!C37) -> <Select>
E4: ="Lender Fee"&IF(C42=TRUE," (up front)","") -> Lender Fee | F4: =IF('BTL Workings'!$C$10="N","",C19) ->  | K4: Number of Dependants | L4: <Select> | N4: =IF(OR(L4="",L4="<Select>",L4="<Complete>"),1,0) -> 1 | O4: =IF(INDIRECT("'BTL Quote History'!C"&P4)="",0,INDIRECT("'BTL Quote History'!C"&P4)) ->  | Q4: =IF('BTL Quote History'!C38="",0,'BTL Quote History'!C38) -> <Select>
B5: Security Address | C5: <Complete> | D5: =IF(OR(C5="",C5="<Select>",C5="<Complete>"),1,0) -> 1 | E5: ="Title Insurance"&IF(C42=TRUE," (up front)","") -> Title Insurance | F5: =IF('BTL Workings'!$C$10="N","",'BTL Workings'!F42) ->  | J5: 1 | K5: =IF($N$4=1,"",IF(J5<=$L$4,"Dependant "&J5&" - age","")) ->  | L5: <Select> | M5: Any dependants aged over 18 should be classed as an adults. | N5: 1 | O5: =IF(INDIRECT("'BTL Quote History'!C"&P5)="","",INDIRECT("'BTL Quote History'!C"&P5)) -> <Complete> | P5: 8 | Q5: =IF('BTL Quote History'!C39="",0,'BTL Quote History'!C39) -> <Select>
E6: ="Broker Fee"&IF(C41=TRUE," (up front)","") -> Broker Fee | F6: =IF('BTL Workings'!$C$10="N","",'BTL Workings'!F40) ->  | J6: 2 | K6: =IF($N$4=1,"",IF(J6<=$L$4,"Dependant "&J6&" - age","")) ->  | L6: <Select> | N6: 1 | O6: =IF(INDIRECT("'BTL Quote History'!C"&P6)="",0,INDIRECT("'BTL Quote History'!C"&P6)) ->  | Q6: =IF('BTL Quote History'!C40="",0,'BTL Quote History'!C40) -> <Select>
B7: Is Borrower a Ltd Co? | C7: <Select> | D7: =IF(OR(C7="",C7="<Select>",C7="<Complete>"),1,0) -> 1 | J7: 3 | L7: <Select> | N7: 1 | O7: =IF(INDIRECT("'BTL Quote History'!C"&P7)="","",INDIRECT("'BTL Quote History'!C"&P7)) -> <Select> | P7: 35 | Q7: =IF('BTL Quote History'!C41="",0,'BTL Quote History'!C41) -> <Select>
E8: Gross Loan | F8: =IF('BTL Workings'!$C$10="N","",'BTL Workings'!F43) ->  | J8: 4 | L8: <Select> | N8: 1 | Q8: =IF('BTL Quote History'!C42="",0,'BTL Quote History'!C42) -> <Select>
B9: Proposed Loan | E9: LTV | F9: =IFERROR(IF('BTL Workings'!$C$10="N","",'BTL Workings'!F44),"NO PLAN") ->  | J9: 5 | L9: <Select> | N9: 1 | Q9: =IF('BTL Quote History'!C43="",0,'BTL Quote History'!C43) -> <Select>
B10: Security Type | C10: <Select> | D10: =IF(OR(C10="",C10="<Select>",C10="<Complete>"),1,0) -> 1 | E10: Annual Interest Rate | F10: =IFERROR(IF('BTL Workings'!C123>0,"",'BTL Workings'!C41),"") ->  | O10: =IF(INDIRECT("'BTL Quote History'!C"&P10)="",0,INDIRECT("'BTL Quote History'!C"&P10)) -> <Select> | P10: 9
B11: Product Type | C11: <Select> | D11: 1 | E11: Monthly Payment | F11: =IFERROR(IF('BTL Workings'!C123>0,"",'BTL Workings'!F46),"") ->  | H11: Broker Income | K11: Affordability - Monthly Income | O11: <Select> | P11: 10
B12: Repayment Type | C12: <Select> | D12: 1 | H12: Commission Rate | I12: =IFERROR(HLOOKUP('BTL Workings'!C39,'BTL Matrix'!C6:H20,15,FALSE)-'BTL Workings'!F58,"") ->  | K12: Applicant 1 | L12: <Complete> | M12: Add the Applicant(s) GUARANTEED income on a 'NET' monthly basis. | N12: =IF(OR(L12="",L12="<Select>",L12="<Complete>"),1,0) -> 1 | O12: <Select> | P12: 11 | Q12: =IF('BTL Quote History'!C44="",0,'BTL Quote History'!C44) -> <Complete>
B13: Status | C13: <Select> | D13: 1 | E13: Follow on Rate | F13: =IFERROR(IF('BTL Workings'!C123>0,"",'BTL Workings'!C42),"") ->  | H13: Commission | I13: =IFERROR(I12*F3,"") ->  | K13: Applicant 2 | L13: <Optional> | O13: <Select> | P13: 12 | Q13: =IF('BTL Quote History'!C45="",0,'BTL Quote History'!C45) -> <Optional>
B14: Rate Type | C14: <Select> | D14: 1 | E14: Follow on Payment | F14: =IFERROR(IF('BTL Workings'!C123>0,"",'BTL Workings'!F48),"") ->  | H14: Broker Fee | I14: =IF('BTL Workings'!C10="N","",IF(C18="<Optional>",0,C18)) ->  | K14: GROSS ANNUAL Income | L14: <Complete> | M14: Add the gross annual income for the entire household | N14: 1 | O14: <Select> | P14: 13 | Q14: =IF('BTL Quote History'!C46="",0,'BTL Quote History'!C46) -> <Complete>
B15: Term (months) | C15: <Complete> | D15: 1 | E15: Approx Legal Fee * | F15: =IF('BTL Workings'!C10="N","",'BTL Workings'!C75) ->  | H15: Total Income | I15: =IFERROR(I14+I13,"") ->  | O15: <Complete> | P15: 14
C16: =IF(C10="HO Business Loan"," Not Applicable Packaged"," First Time Landlord Packaged") -> First Time Landlord Packaged | E16: Approx Valuation Fee ** | F16: =IF(C23="","",'BTL Workings'!C84) -> Add Val | K16: Affordability - Expenditure
B17: ="Net Loan"&IFERROR(IF('BTL Workings'!C12="N","",IF('BTL Workings'!C25=TRUE," (max removed)"," (max £"&'BTL Workings'!C44/1000&"k)")),"") -> Net Loan | C17: <Complete> | D17: =IF(OR(C17="",C17="<Select>",C17="<Complete>"),1,0) -> 1 | E17: Prices include VAT ** Additional legal costs may apply, particularly if purchase *** Val fee based on standard resi property | H17: Criteria Highlights | K17: Residential Mortgage(s) Bal | L17: <Complete> | N17: =IF(OR(L17="",L17="<Select>",L17="<Complete>"),1,0) -> 1 | O17: =IF(INDIRECT("'BTL Quote History'!C"&P17)="",0,INDIRECT("'BTL Quote History'!C"&P17)) -> <Complete> | P17: 15 | Q17: =IF('BTL Quote History'!C47="",0,'BTL Quote History'!C47) -> <Complete>
B18: Broker Fee | C18: <Optional> | H18: =IFERROR(IF('BTL Workings'!B114=0,"",'BTL Workings'!B114),"") ->  | K18: Resi Mort/Rent Pmt | L18: <Complete> | N18: 1 | O18: =IF(INDIRECT("'BTL Quote History'!C"&P18)="",0,INDIRECT("'BTL Quote History'!C"&P18)) -> <Optional> | P18: 16 | Q18: =IF('BTL Quote History'!C48="",0,'BTL Quote History'!C48) -> <Complete>
B19: Lender Fee | C19: =IFERROR(IF(C17="","",'BTL Workings'!C58),"") -> 0 | H19: =IFERROR(IF('BTL Workings'!B115=0,"",'BTL Workings'!B115),"") ->  | K19: BTL Loan shortfall | L19: =IFERROR(IF(F28="Fits Rent",0,F28),"") ->  | O19: =IF(INDIRECT("'BTL Quote History'!C"&P19)="",0,INDIRECT("'BTL Quote History'!C"&P19)) -> 0 | P19: 17
B20: ="Title Insurance"&IF(C20=0," (NA)","") -> Title Insurance | C20: =IF(C17="","",IFERROR('BTL Workings'!C66,"")) ->  | H20: =IFERROR(IF('BTL Workings'!B116=0,"",'BTL Workings'!B116),"") -> 
H21: =IFERROR(IF('BTL Workings'!B117=0,"",'BTL Workings'!B117),"") ->  | K21: Affordability - Remaining Commitments
B22: Property Details | E22: Rental Calculations (Stressed where app) | H22: =IFERROR(IF('BTL Workings'!B118=0,"",'BTL Workings'!B118),"") ->  | K22: Credit Cards | L22: <Optional> | M22: 3% of balance | Q22: =IF('BTL Quote History'!C49="",0,'BTL Quote History'!C49) -> <Optional>
B23: Value | C23: <Complete> | D23: =IF(OR(C23="",C23="<Select>",C23="<Complete>"),1,0) -> 1 | E23: ="Max MT CMI"&IF('BTL Workings'!K45="Y"," (Stressed)","") -> Max MT CMI | F23: =IF(OR('BTL Workings'!C10="N",'BTL Workings'!C16="Y"),"",(((C26+IF(C27="<Optional>",0,C27))/'BTL Workings'!C70)-IF(D35=0,0,F25))) ->  | H23: =IFERROR(IF('BTL Workings'!B119=0,"",'BTL Workings'!B119),"") ->  | K23: Unsecured Credit | L23: <Optional> | O23: =IF(INDIRECT("'BTL Quote History'!C"&P23)="",0,INDIRECT("'BTL Quote History'!C"&P23)) -> <Complete> | P23: 18 | Q23: =IF('BTL Quote History'!C50="",0,'BTL Quote History'!C50) -> <Optional>
B24: Location | C24: <Select> | D24: 1 | E24: ="MT CMI"&IF('BTL Workings'!K45="Y"," (Stressed)","") -> MT CMI | F24: =IF('BTL Workings'!C10="N","",'BTL Workings'!K46) ->  | H24: =IFERROR(IF('BTL Workings'!B120=0,"",'BTL Workings'!B120),"") ->  | K24: School Fees/Childcare/Other | L24: <Optional> | O24: =IF(INDIRECT("'BTL Quote History'!C"&P24)="",0,INDIRECT("'BTL Quote History'!C"&P24)) -> <Select> | P24: 19 | Q24: =IF('BTL Quote History'!C51="",0,'BTL Quote History'!C51) -> <Optional>
B25: Type | C25: <Select> | D25: 1 | E25: ="1st Charge" &IF('BTL Workings'!K48="Y"," (Stressed)","") -> 1st Charge (Stressed) | F25: =IF('BTL Workings'!C10="N","",'BTL Workings'!K49) ->  | H25: =IFERROR(IF('BTL Workings'!B121=0,"",'BTL Workings'!B121),"") ->  | K25: =IF('BTL Workings'!C16="Y","Resi and new pmt","") ->  | L25: =IFERROR(IF('BTL Workings'!C16="Y",F24+C35,0),"") -> 0 | O25: =IF(INDIRECT("'BTL Quote History'!C"&P25)="",0,INDIRECT("'BTL Quote History'!C"&P25)) -> <Select> | P25: 20
B26: Rental Income | C26: <Complete> | D26: =IF(AND('BTL Workings'!C16="N",OR(C26="",C26="<Select>",C26="<Complete>")),1,0) -> 1 | E26: ="Tot Secured CMIs"& IF(OR('BTL Workings'!K45="Y",'BTL Workings'!K48="Y")," (Stressed)","") -> Tot Secured CMIs (Stressed) | F26: =IFERROR(F24+F25,"") ->  | H26: ='BTL Workings'!M63 -> Title Insurance is available | K26: Total Credit Commitments | L26: =SUM(L22:L25) -> 0 | O26: =IF(INDIRECT("'BTL Quote History'!C"&P26)="",0,INDIRECT("'BTL Quote History'!C"&P26)) -> <Complete> | P26: 21
B27: Additional Rental Surplus | C27: <Optional> | E27: ="DSCR"& IF(OR('BTL Workings'!K45="Y",'BTL Workings'!K48="Y")," (Stressed)","") -> DSCR (Stressed) | F27: =IFERROR(ROUNDDOWN(SUM((C26+IF(C27="<Optional>",0,C27))/(F26)),4),"") ->  | O27: =IF(INDIRECT("'BTL Quote History'!C"&P27)="",0,INDIRECT("'BTL Quote History'!C"&P27)) -> <Optional> | P27: 22
B28: Is Property Leasehold? | C28: <Complete> | D28: =IF(OR(C28="",C28="<Select>",C28="<Complete>"),1,0) -> 1 | E28: ="Rent Shortfall"& IF(OR('BTL Workings'!K45="Y",'BTL Workings'!K48="Y")," (Stressed)","") -> Rent Shortfall (Stressed) | F28: =IF(OR('BTL Workings'!C10="N",'BTL Workings'!C16="Y"),"",IF(F24-F23<=0,"Fits Rent",(F24-F23)*'BTL Workings'!C70)) ->  | H28: Notes | K28: =IF('BTL Workings'!C175>0,"Affordability - Outstanding","Affordability - Decision") -> Affordability - Outstanding | O28: =IF(INDIRECT("'BTL Quote History'!C"&P28)="","",INDIRECT("'BTL Quote History'!C"&P28)) -> <Complete> | P28: 36
G29: 1 | H29: =IFERROR(VLOOKUP(G29,'BTL Workings'!$B$125:$D$137,3,FALSE),'BTL Workings'!E162) -> Complete all inputs | J29: =IF('BTL Workings'!C175=0,"",1) -> 1 | K29: =IF('BTL Workings'!C175>0,IFERROR(VLOOKUP(J29,'BTL Workings'!$C$171:$D$174,2,FALSE),""),"Total Outgoings") -> Complete household size | L29: =IF('BTL Workings'!C175>0,"",IFERROR(IF('BTL Workings'!C16="Y",L26,L18+L19+L26),"")) -> 
B30: ="First Charge Details"&IF('BTL Workings'!C6=2,""," (not applicable)") -> First Charge Details (not applicable) | D30: =SUM(D31:D35) -> 0 | E30: Maximum Loan Calculator | G30: 2 | H30: =IFERROR(VLOOKUP(G30,'BTL Workings'!$B$125:$D$137,3,FALSE),'BTL Workings'!E163) ->  | J30: =IF(OR(J29='BTL Workings'!$C$175,J29=""),"",J29+1) -> 2 | K30: =IF('BTL Workings'!C175>0,IFERROR(VLOOKUP(J30,'BTL Workings'!$C$171:$D$174,2,FALSE),""),"Total Net Income") -> Add household income | L30: =IF('BTL Workings'!C175>0,"",L12+IF(L13="<Optional>",0,L13)) -> 
B31: Repayment Type | C31: <Select> | D31: =IF(OR(C31="",C31="<Select>",C31="<Complete>"),0,1) -> 0 | E31: Max LTV Available | F31: =IFERROR('BTL Workings'!D36,"") ->  | G31: 3 | H31: =IFERROR(VLOOKUP(G31,'BTL Workings'!$B$125:$D$137,3,FALSE),'BTL Workings'!E164) ->  | J31: =IF(OR(J30='BTL Workings'!$C$175,J30=""),"",J30+1) -> 3 | K31: =IF('BTL Workings'!C175>0,IFERROR(VLOOKUP(J31,'BTL Workings'!$C$171:$D$174,2,FALSE),""),"Outcome") -> Add mortgage payment | L31: =IF('BTL Workings'!C175>0,"",'BTL Workings'!C167) ->  | O31: =IF(INDIRECT("'BTL Quote History'!C"&P31)="","",INDIRECT("'BTL Quote History'!C"&P31)) -> <Select> | P31: 23
B32: Rate Type (remaining fix) | C32: <Select> | D32: =IF(OR(C32="",C32="<Select>",C32="<Complete>"),0,1) -> 0 | E32: Max Lending (net) | F32: =IFERROR(IF('BTL Workings'!C3="B",'BTL Workings'!C109,'BTL Workings'!J109),"") ->  | G32: 4 | H32: =IFERROR(VLOOKUP(G32,'BTL Workings'!$B$125:$D$137,3,FALSE),'BTL Workings'!E165) ->  | J32: =IF(OR(J31='BTL Workings'!$C$175,J31=""),"",J31+1) -> 4 | K32: =IF('BTL Workings'!C175>0,IFERROR(VLOOKUP(J32,'BTL Workings'!$C$171:$D$174,2,FALSE),""),"") -> A valid MT loan quote | O32: =IF(INDIRECT("'BTL Quote History'!C"&P32)="","",INDIRECT("'BTL Quote History'!C"&P32)) -> <Select> | P32: 24
B33: Remaining Term (m) | C33: <Complete> | D33: 0 | E33: Max LTV Due To: | G33: 5 | H33: =IFERROR(VLOOKUP(G33,'BTL Workings'!$B$125:$D$137,3,FALSE),'BTL Workings'!E166) ->  | O33: =IF(INDIRECT("'BTL Quote History'!C"&P33)="","",INDIRECT("'BTL Quote History'!C"&P33)) -> <Complete> | P33: 25
B34: Balance | C34: <Complete> | D34: 0 | E34: =IFERROR('BTL Workings'!F36,"") ->  | G34: 6 | H34: =IFERROR(VLOOKUP(G34,'BTL Workings'!$B$125:$D$137,3,FALSE),'BTL Workings'!E167) ->  | O34: =IF(INDIRECT("'BTL Quote History'!C"&P34)="","",INDIRECT("'BTL Quote History'!C"&P34)) -> <Complete> | P34: 26
B35: Monthly Payment | C35: <Complete> | D35: 0 | G35: 7 | H35: =IFERROR(VLOOKUP(G35,'BTL Workings'!$B$125:$D$137,3,FALSE),'BTL Workings'!E168) ->  | O35: =IF(INDIRECT("'BTL Quote History'!C"&P35)="","",INDIRECT("'BTL Quote History'!C"&P35)) -> <Complete> | P35: 27
H36: =IF('BTL Workings'!C3="D",VLOOKUP(1,'BTL Workings'!M58:S61,7,FALSE),"") -> 
B38: Tick boxes | C38: FALSE
B39: 1st time LL | C39: FALSE | O39: =IF(INDIRECT("'BTL Quote History'!C"&P39)="",0,INDIRECT("'BTL Quote History'!C"&P39)) -> FALSE | P39: 29
B40: Packaged | C40: FALSE | O40: FALSE | P40: 30
B41: B fee UF | C41: FALSE | O41: FALSE | P41: 31
B42: L fee UF | C42: FALSE | O42: FALSE | P42: 32
B43: Add TI | C43: FALSE | O43: FALSE | P43: 33
B44: Del Max | C44: FALSE | O44: FALSE | P44: 34
B45: Rate Switch | C45: FALSE | O45: FALSE | P45: 64

Sheet BTL Heads of Terms
B3: ="Date: " -> Date:
B4: =INDIRECT("'BTL Quote History'!e3") -> 00:00:00
B6: Introducer Name:
B8: Heads of Terms
B10: Thank you for your enquiry. We are pleased to confirm that based on the information provided to us, the application is acceptable in principle and this outlines the facility that we may be able to provide together with some of the terms and conditions that will apply.
B12: Applicant Name: | C12: =IF('BTL Quote'!C3="","",'BTL Quote'!C3) -> <Complete> | F12: Change | G12: =INDIRECT("'BTL Quote History'!d4") -> N
B13: If the application is being made by a Limited Company, please note that all directors/shareholders in the business will need to provide a personal guarantee. Also a debenture over the property.
B14: Security Address: | C14: =IF('BTL Quote'!C5="","Not Stated",'BTL Quote'!C5) -> <Complete>
B16: Advised Estimated Valuation of: | C16: ='BTL Quote'!C23 -> <Complete>
B17: Other Security Address:
B19: Advised Estimated Valuation of: | C19: £
B21: Product: | C21: ='BTL Workings'!C49 -> <Select> - <Select> - <Select> - <Select> - <Select>
B22: Loan Term: | C22: ='BTL Quote'!C15 & " months " -> <Complete> months
B23: Annual Interest Rate: | C23: =IFERROR('BTL Workings'!C41*100& "%","")&IF('BTL Workings'!C46="FFT"," - fixed for the term of the loan",IF('BTL Workings'!C45>0," - fixed for "&'BTL Workings'!C45&" months"," - variable")) -> 
B24: Net Loan: | C24: ='BTL Quote'!F3 -> 
B25: ="Lender Fee - "&IF('BTL Quote'!C42=FALSE," added to the loan:"," payable up front:") -> Lender Fee - added to the loan: | C25: ='BTL Quote'!F4 -> 
B26: ="Broker Fee - "&IF('BTL Quote'!C41=FALSE," added to the loan:"," payable up front:") -> Broker Fee - added to the loan: | C26: ='BTL Quote'!F6 -> 
B27: =IF('BTL Workings'!C66=0,"Title Insurance (not available)","Title Insurance" &IF('BTL Quote'!C43=FALSE," (not taken)",IF('BTL Quote'!C42=FALSE," - added to the loan:"," - payable up front:"))) ->  | C27: =IF(B27="","",'BTL Quote'!F5) -> 
B28: Gross Loan: | C28: ='BTL Quote'!F8 -> 
B29: Where detailed below, fees are included in the gross loan amount and will be deducted from the advance on completion
B30: Repayment Method: | C30: =IF('BTL Quote'!C12="","",'BTL Quote'!C12) -> <Select>
B31: Monthly Repayment: | C31: ='BTL Quote'!F11 -> 
C32: (Payable by Direct Debit)
B33: =IFERROR(IF('BTL Workings'!C45=0,"","At the end of your fixed rate period the interest rate will become variable. Based on the current variable rate the interest rate will be "&'BTL Quote'!F13*100&"% and the monthly payment will be £"&TEXT('BTL Quote'!F14,"#,##0.00")),"") -> 
B35: Early Repayment Charge: | C35: =IFERROR(VLOOKUP('BTL Quote'!C14,'BTL Drop Downs'!H4:K12,4,FALSE),"") -> 
B36: Discharge Fee: | C36: 245
B39: Fees (if added to the loan these will be deducted from the gross loan amount on completion):
B41: Broker Fee: | C41: ='BTL Quote'!F6 -> 
B42: =IF(C41=0,"Not applicable",IF('BTL Workings'!C22=FALSE,"You have asked for this fee to be added to your loan, it will therefore be interest bearing. This will be deducted from the gross loan on completion and paid to your Broker.", "You have chosen to pay your Broker this fee up front.")) -> You have asked for this fee to be added to your loan, it will therefore be interest bearing. This will be deducted from the gross loan on completion and paid to your Broker.
B43: Lender Fee: | C43: ='BTL Quote'!F4 -> 
B44: =IF('BTL Workings'!C23=FALSE,"You have asked for this fee to be added to your loan, it will therefore be interest bearing. This will be deducted from the gross loan on completion.", "You have chosen to pay this fee up front. This must be paid to us before the loan completes.") -> You have asked for this fee to be added to your loan, it will therefore be interest bearing. This will be deducted from the gross loan on completion.
B45: =IF(B27="","","Title Insurance:") ->  | C45: =IF(B45="","",'BTL Quote'!F5) -> 
B46: =IF('BTL Workings'!C66=0,"Not available on this plan",IF('BTL Workings'!C24=FALSE,"Opted out",IF('BTL Workings'!C23=FALSE,"You have asked for this fee to be added to your loan, it will therefore be interest bearing. This will be deducted from the gross loan on completion.", "You have chosen to pay this fee up front. This must be paid to us before the loan completes."))) -> 
B47: Valuation Fee, only payable if does not pass AVM: (not included in gross loan) | C47: ='BTL Quote'!F16 -> Add Val
B48: Including VAT. Paid directly to the valuer. Based on the estimated property value.
B49: Legal Fee: | C49: ='BTL Quote'!F15 -> 
B50: =IF('BTL Workings'!C6=1,"Including VAT. This fee is for 1st charges Only. Prior to commencement of legal due diligence, the borrowers solicitor"&" will be required to provide our solicitor with an undertaking to pay its accrued legal fees in full, whether or not the loan completes. This fee may change once solicitors are instructed and work has begun.","") -> Including VAT. This fee is for 1st charges Only. Prior to commencement of legal due diligence, the borrowers solicitor will be required to provide our solicitor with an undertaking to pay its accrued legal fees in full, whether or not the loan completes. This fee may change once solicitors are instructed and work has begun.
B51: Commission: | C51: ='BTL Quote'!I13 -> 
B52: This is the amount we will pay to your broker upon completion. This does not form part of the loan agreement
B54: These Heads of Terms are valid for 14 days from the date of issue
B56: Please note that interest on your loan will be charged on a daily rate based on the actual number of days in any month. As the number of days in a month differ from month to month, we have assumed that there are 30.4 days (365 days/12) in each month for the purpose of this illustration. This means the actual interest charged (and therefore your final repayment instalment) may be higher than illustrated.
B57: This is not a formal loan offer. These figures are based on un-verified information that has been provided to us. Mercantile Trust Ltd will only be able to provide the applicant with a formal loan offer when we are in receipt of and satisfied with the following requirements:
B59: · Fully completed and signed application pack.
B60: · Proof of 6 months' mortgage or rent history (if not on the credit search).
B61: · Proof of last month's rent received
B62: · NIVO ID verification.
B63: · Proof of address for last 3 years
B64: · Valuation required - Full / Drive by / AVM (depending on criteria)
B65: · If the property is currently rented;
B66: o A copy of the most recent Energy Performance Certificate rated E or above.
B67: o Copy of current tenancy agreement(s).
B69: · Copy of building insurance schedule with Mercantile Trust Ltd’s interest noted for 1st charges– Reinstatement value required.
B70: All documentation to be emailed to referrals@mercantiletrust.co.uk
B72: Please note the following will be conducted by Mercantile Trust Ltd:
B74: · Pre-Completion call to be completed with all applicants
B75: · Equifax credit search to be conducted on all properties
B77: Valuation: where the applicant is ready to proceed the valuation can be instructed via:
B79: Pure Panel Management: 0191 214 2459 - residential properties only
B80: VAS Panel Management: 01642 262 217 - refurbishment, residential & commercial properties
B82: Solicitors: Mercantile Trust Ltd will instruct solicitors when our underwriting criteria has been satisfied.
B84: Mercantile Trust Ltd is unable to lend where this mortgage would become a regulated mortgage contract under current FCA rules.
B86: Property Type: Mercantile Trust Ltd will consider loans on all types of residential properties although certain properties may have LTV restrictions imposed. Please refer to our current matrix. The property types outlined below are ineligible for our product range.
B87: · A property that is non-traditional and not suitable to the area
B88: · Grade I or II* (star) listed properties.
B89: · Shared ownership/Housing Association properties
B90: · Properties valued at less than £75,000
B91: · Maximum LTVs apply for the following: Freehold Flats max LTV 65%, Ex Local Authority flats/maisonettes under £150k max LTV 65%, Properties over £1.5m max LTV 65%, Properties over £1m max LTV 70%.
B92: · Properties where potential environmental damage exists
B93: · Leasehold properties with less than 50 years remaining

Sheet BTL Drop Downs (hidden)
A1: Highlighted are lookups from dropdowns
B2: Purpose | C2: Security Type | D2: Status | E2: Plan status | F2: Product Type | G2: Charge | H2: Rate Type | I2: Fix Term(m) | J2: Fix Code | K2: ERC | L2: Repayment | M2: 1st Rate Type | N2: Y/N | O2: Dependants | P2: Dependant Age
B3: <Select> | C3: <Select> | D3: <Select> | F3: <Select> | H3: <Select> | L3: <Select> | M3: <Select> | N3: <Select> | O3: <Select> | P3: <Select>
B4: Purchase | C4: BTL | D4: 0 Status | E4: 0 | F4: Second Charge | G4: 2 | H4: Variable | I4: 0 | J4: V | K4: None | L4: I/Only | M4: Variable | N4: Yes | O4: 0 | P4: 0
B5: Refurbishment | C5: HMO | D5: 1 Status | E5: 1 | F5: =IF('BTL Workings'!C16="Y","","First Charge Purchase") -> First Charge Purchase | G5: 1 | H5: 2 Yr Fixed | I5: 24 | J5: 2 | K5: Year 1; 2%. Year 2; 1% | L5: Repayment | M5: Fixed < 5Yr | N5: No | O5: 1 | P5: 1
B6: Consolidation | C6: Holiday Let | D6: 2 Status | E6: 2 | F6: =IF('BTL Workings'!C16="Y","","First Charge Refinance") -> First Charge Refinance | G6: 1 | H6: 3 Yr Fixed | I6: 36 | J6: 3 | K6: Year 1; 3%. Year 2; 2%. Year 3; 1% | M6: Fixed => 5Yr | O6: 2 | P6: 2
B7: Business | C7: Student Let | F7: =IF('BTL Workings'!C16="Y","","First Charge Unencumbered") -> First Charge Unencumbered | G7: 1 | H7: 5 Yr Fixed | I7: 60 | J7: 5 | K7: Year 1 - 5%, Year 2 - 4%, Year 3 - 3%, Year 4 - 2%, Year 5 - 1% | O7: 3 | P7: 3
B8: Lease extension | C8: MUFB | H8: 5 Yr Fixed (No ERC) | I8: 60 | J8: 5N | K8: None | O8: 4 | P8: 4
B9: Other | C9: =IF('BTL Workings'!D76="Yes","","HO Business Loan") -> HO Business Loan | O9: 5 | P9: 5
P10: 6
P11: 7
P12: 8
P13: 9
P14: 10
P15: 11
P16: 12
P17: 13
P18: 14
P19: 15
P20: 16
P21: 17
H23: 2 Yr Fixed (No ERC) | I23: 24 | J23: 2N | K23: None

Sheet BTL Workings (hidden)
B2: Inputs | G2: Publishing Calculator
B3: Broker / Direct | C3: B
B4: Location | C4: =LEFT('BTL Quote'!C24) -> <
B5: Purchase | C5: =IF(ISERROR(FIND("Purchase",'BTL Quote'!C11)),"N","Y") -> N
B6: Charge | C6: =IFERROR(VLOOKUP('BTL Quote'!C11,'BTL Drop Downs'!F4:G11,2,FALSE),1) -> 1
B7: Status | C7: =VLOOKUP('BTL Quote'!C13,'BTL Drop Downs'!D4:E10,2,FALSE) ->  | J7: After publishing non-macro ensure you save-as type
B8: Repayment basis | C8: =LEFT('BTL Quote'!C12) -> < | J8: Excel workbook (NOT macro-enabled)
B9: Term | C9: ='BTL Quote'!C15 -> <Complete>
B10: Inputs Complete | C10: =IF(OR(C18="Y",C11="N",C13="N",C12="N",'BTL Quote'!D17=1,SUM('BTL Quote'!D23:D28)>0),"N","Y") -> N
B11: 1st Charge comp | C11: =IF(AND(C6=2,'BTL Quote'!D30<>5),"N","Y") -> Y | D11: if needed
B12: Plan Type Complete | C12: =IF(SUM('BTL Quote'!D10:D15)>0,"N","Y") -> N
B13: 1st Charge deleted | C13: =IF(AND(C6=1,'BTL Quote'!D30<>0),"N","Y") -> Y | D13: if is a 1st charge and prev mortgage details still there
B16: Is HOBL | C16: =IF('BTL Quote'!C10="HO Business Loan","Y","N") -> N
B17: HOBL Min Loan | C17: ='BTL Matrix'!F22 -> 25000
B18: HOBL error | C18: =IF(AND(C16="Y",C6=1),"Y","N") -> N | D18: Second charge only
B19: Tick boxes
B20: 1st time LL | C20: ='BTL Quote'!C39 -> FALSE
B21: Packaged | C21: ='BTL Quote'!C40 -> FALSE
B22: B fee UF | C22: ='BTL Quote'!C41 -> FALSE
B23: L fee UF | C23: ='BTL Quote'!C42 -> FALSE
B24: Add TI | C24: ='BTL Quote'!C43 -> FALSE
B25: Del Max | C25: ='BTL Quote'!C44 -> FALSE | D25: 10000000
B26: Rate Switch | C26: ='BTL Quote'!C45 -> FALSE
B27: Max LTVs
E28: Max LTV index | F28: Reason | I28: Value
B29: LTV Restrictions | C29: This App | D29: LTV | E29: 0 | G29: Prop Type | H29: LTV | I29: 0 | J29: 150000 | K29: Country | L29: LTV | M29: Prop Value | N29: LTV | O29: 1st time LL
B30: Plan | C30: =C39 ->  | D30: =HLOOKUP(C30,'BTL Matrix'!C6:H21,2,FALSE) ->  | E30: =E29+IF(D30=$D$36,1,0) ->  | F30: Plan max | G30: Ex C'cil Flat / Mais | H30: =IF(C33>=J29,J30,I30) -> 1 | I30: 0.65 | J30: 1 | K30: England | L30: 1 | M30: 0 | N30: 1 | O30: TRUE | P30: 0.65
B31: Country | C31: ='BTL Quote'!C24 -> <Select> | D31: =VLOOKUP(C31,K30:L33,2,FALSE) ->  | E31: =E30+IF(D31=$D$36,1,0) ->  | F31: Property in NI | G31: Freehold Flat | H31: 0.65 | K31: Wales | L31: 1 | M31: 1000001 | N31: 0.7 | O31: FALSE | P31: 1
B32: Prop Type | C32: ='BTL Quote'!C25 -> <Select> | D32: =VLOOKUP(C32,G30:H34,2,FALSE) ->  | E32: =E31+IF(D32=$D$36,1,0) ->  | F32: Property type | G32: All other properties | H32: 1 | K32: Scotland | L32: 1 | M32: 1500001 | N32: 0.65
B33: Prop Value | C33: ='BTL Quote'!C23 -> <Complete> | D33: =VLOOKUP(C33,M30:N32,2,TRUE) ->  | E33: =E32+IF(D33=$D$36,1,0) ->  | F33: Property value | K33: Northern Ireland | L33: 1
B34: 1st time LL | C34: =IF(C16="Y",FALSE,'BTL Workings'!C20) -> FALSE | D34: =VLOOKUP(C34,O30:P31,2,FALSE) -> 1 | E34: =E33+IF(D34=$D$36,1,0) ->  | F34: First time landlord
B36: Max LTV this Plan | D36: =MIN(D30:D34) ->  | E36: Final Reason | F36: =VLOOKUP(1,E30:F34,2,FALSE)&IF(E34>1,"; "&VLOOKUP(2,E30:F34,2,FALSE)&IF(E34>2,"; "&VLOOKUP(3,E30:F34,2,FALSE)&IF(E34>3,"; "&VLOOKUP(4,E30:F34,2,FALSE),""),""),"") -> 
B38: This Plan | I38: Amount Errors
B39: Plan Code | C39: =C6&"-"&C7 ->  | E39: Net | F39: =IF('BTL Quote'!D17=1,0,'BTL Quote'!C17) -> 0 | G39: Included | I39: Net under min | J39: =IFERROR(IF(AND(F39<C43,F39<>0),"Y","N"),"") -> 
B40: Fix Code | C40: =VLOOKUP('BTL Quote'!C14,'BTL Drop Downs'!H4:J12,3,FALSE) ->  | E40: Broker fee | F40: =IF(C3="D",0,IF('BTL Quote'!C18="<Optional>",0,'BTL Quote'!C18)) -> 0 | G40: =IF(C22=TRUE,0,F40) -> 0 | I40: Net over max | J40: =IFERROR(IF(F39>C44,"Y","N"),"") -> 
B41: Plan Rate | C41: =HLOOKUP(C39,'BTL Matrix'!C6:H21,VLOOKUP(C40,'BTL Matrix'!A11:I24,9,FALSE),FALSE) ->  | E41: Lender Fee | F41: ='BTL Quote'!F4 ->  | G41: =IF(C23=TRUE,0,F41) ->  | I41: Broker fee high | J41: =IFERROR(IF(OR(F40>K41,F40>(F39*L41)),"Y","N"),"") -> N | K41: 10000 | L41: 0.15
B42: Follow on rate | C42: =IF(OR(C46="FFT",C46="VR"),"NA",HLOOKUP(C39,'BTL Matrix'!C6:H21,6,FALSE)) ->  | E42: Title Insurance | F42: =C64 -> 0 | G42: =IF(C23=TRUE,0,F42) -> 0 | I42: Any Error | J42: =IF(COUNTIF(J39:J41,"Y")>0,"Y","N") -> N
B43: Min Loan | C43: =IF(C25=TRUE,0,IF(C16="Y",C17,HLOOKUP(C39,'BTL Matrix'!C6:H9,3,FALSE))) ->  | E43: Gross | F43: =SUM(F39,G40:G42) -> 0
B44: Max Loan | C44: =IF(C25=TRUE,D25,C55) ->  | E44: LTV | F44: =ROUNDUP((F43+IF('BTL Quote'!D34=0,0,'BTL Quote'!C34))/C33,4) ->  | I44: Stress on CT payment
B45: Fix term | C45: =VLOOKUP('BTL Quote'!C14,'BTL Drop Downs'!H4:I12,2,FALSE) ->  | E45: Over Max LTV | F45: =IF(F44>D36,1,0) ->  | G45: Stressed | I45: Stress applicable | K45: =IFERROR(IF(C45>=60,"N","Y"),"N") -> N
B46: Fix exceeds term | C46: =IFERROR(IF(C45=0,"VR",IF(C45=C9,"FFT",IF(AND(C45>C9,C9<>0),"Y","N"))),"") ->  | E46: Monthly payment | F46: =ROUND(IF(C8="I",F43*C41/12,PMT(C41/12,C9,-F43)),2) ->  | I46: Stressed Payment | K46: =IF(K45="N",F46,IF(C8="I",ROUND(F43*(IF(C42="NA",C41,C42)+C71)/12,2),ROUND(PMT((IF(C42="NA",C41,C42)+C71)/12,C9,-F43),2))) -> 
E47: FV fix end | F47: =IF(OR(C46="FFT",C46="VR"),"NA",IF(C8="I",F43,FV(C41/12,C45,F46,-F43))) ->  | I47: Stress on 1st payment
E48: Follow on PMT | F48: =IF(OR(C46="FFT",C46="VR"),"NA",ROUND(IF(C8="I",F47*C42/12,PMT(C42/12,C9-C45,-F47)),2)) ->  | I48: Stress applicable | K48: =IF('BTL Quote'!C32<>"Fixed => 5Yr","Y","N") -> Y
B49: Full Plan Name | C49: ='BTL Quote'!C10&" - "&'BTL Quote'!C11&" - "&'BTL Quote'!C12&" - "&'BTL Quote'!C13&" - "&'BTL Quote'!C14 -> <Select> - <Select> - <Select> - <Select> - <Select> | I49: Stressed Payment | K49: =IFERROR(IF(K48="N",'BTL Quote'!C35,ROUND(IF('BTL Quote'!C31="Repayment",PMT(RATE('BTL Quote'!C33,'BTL Quote'!C35,-'BTL Quote'!C34)+(C71/12),'BTL Quote'!C33,-'BTL Quote'!C34),'BTL Quote'!C34*(('BTL Quote'!C35/'BTL Quote'!C34)+(C71/12))),2)),0) -> 0
B51: Max Loan Amounts
B52: Plan Max Loan | C52: =HLOOKUP(C39,'BTL Matrix'!C6:H21,4,FALSE) ->  | F52: Min Term | G52: 36
B53: NI Max Loan | C53: =IF(C4="N",D53,10000000) -> 10000000 | D53: =HLOOKUP(C39,'BTL Matrix'!B6:H21,16,FALSE) ->  | F53: Max Term | G53: 360
B55: Lowest | C55: =MIN(C52:C54) -> 
B57: Lender Fees | C57: Applies | D57: (broker only) | F57: Commission Offset | L57: Direct | M57: Applies | N57: Net under | O57: £ | P57: % | Q57: Total | R57: Wording
B58: This plan lender fee | C58: =(F39*C59)+C61+C60 -> 0 | F58: 0 | M58: =IF(AND($M$61<>1,$F$39<N58),1,0) -> 1 | N58: 20000 | O58: 0 | P58: 1499 | Q58: 0.01 | R58: =($F$39*Q58)+P58 -> 1499 | S58: =IF(M58=1,"Standard lender fee: £"&IF(F39=0,"TBA",ROUND(R58,2)&" (£"&ROUND(Q58*$F$39,2)&" + £"&P58&")"),"") -> Standard lender fee: £TBA
B59: Fixed | C59: =D59-F58 -> 0.03 | D59: 0.03 | F59: Enter % to take off commission to reduce lender fee | M59: =IF(AND($M$61<>1,$F$39<N59,$F$39>=N58),1,0) -> 0 | N59: 100000 | O59: =N58 -> 20000 | P59: 2999 | Q59: 0.01 | R59: =($F$39*Q59)+P59 -> 2999 | S59: =IF(M59=1,"Standard lender fee: £"&ROUND(R59,2)&" (£"&ROUND(Q59*$F$39,2)&" + £"&P59&")","") -> 
B60: Packaged | C60: =IF(C21=TRUE,D60,0) -> 0 | D60: 999 | M60: =IF(AND($M$61<>1,$F$39<N60,$F$39>=N59),1,0) -> 0 | N60: 10000000 | O60: =N59 -> 100000 | P60: 3499 | Q60: 0.01 | R60: =($F$39*Q60)+P60 -> 3499 | S60: =IF(M60=1,"Standard lender fee: £"&ROUND(R60,2)&" (£"&ROUND(Q60*$F$39,2)&" + £"&P60&")","") -> 
B61: NI | C61: =IF(AND(C4="N",C6=2),D61,0) -> 0 | D61: 899 | E61: All seconds | M61: =IF(C26=TRUE,1,0) -> 0 | N61: Rate Switch | P61: 999 | Q61: 0.01 | R61: =($F$39*Q61)+P61 -> 999 | S61: =IF(M61=1,"Standard lender fee: £"&ROUND(R61,2)&" (£"&ROUND(Q61*$F$39,2)&" + £"&P61&")","") -> 
B63: Title Insurance | I63: TI threshold | J63: Min loan for TI | L63: Reason Not TI | M63: =VLOOKUP(1,L64:M68,2,FALSE) -> Title Insurance is available
B64: This Loan Premium | C64: =IF(C24=TRUE,C66,0) -> 0 | F64: TI Bandings (over) | I64: Second Charge | J64: 999999999 | L64: =IF(AND(C4="N",C68<>"Y"),1,0) -> 0 | M64: Title Insurance NA in Northern Ireland
B65: TI Threshold | C65: =VLOOKUP(C67,I64:J67,2,FALSE) ->  | F65: 0 | G65: 699 | I65: First Charge Purchase | J65: 0 | L65: =IF(AND(C6=2,$F$39<J64),1,0) -> 0 | M65: Title Insurance NA on 2nd charges
B66: Potential Premium | C66: =IF(AND(C4="N",C68<>"Y"),0,IF(F39<C65,0,VLOOKUP(F39,F65:G66,2,TRUE))) ->  | F66: 300000 | G66: 999 | I66: First Charge Refinance | J66: 100000 | L66: =IF(AND($C$67=I66,$F$39<J66),1,0) -> 0 | M66: ="Title Insurance NA on 1st refinance < £"&J66/1000&"k" -> Title Insurance NA on 1st refinance < £100k
B67: Plan Type | C67: ='BTL Quote'!C11 -> <Select> | I67: First Charge Unencumbered | J67: 100000 | L67: =IF(AND($C$67=I67,$F$39<J67),1,0) -> 0 | M67: ="Title Insurance NA on 1st unencumbered < £"&J67/1000&"k" -> Title Insurance NA on 1st unencumbered < £100k
B68: Available in NI | C68: n | L68: =IF(SUM(L64:L67)=0,1,0) -> 1 | M68: Title Insurance is available
B69: Rules | E69: DSCR
B70: Max DSCR | C70: =IF(AND(C20=TRUE,F44>G71),F71,F70) ->  | E70: Normal | F70: 1.25
B71: Stress | C71: 0.01 | E71: 1st time LL > 65% | F71: 1.4 | G71: 0.65
B74: Legal Fees | F74: 1st charge
B75: This plan legal fee | C75: =IF(C6=2,0,IF(AND(C6=1,C4="N"),VLOOKUP(F43,F76:I82,4,TRUE),IF(OR(C5="Y",F39>=100000),VLOOKUP(F39,F76:H82,3,TRUE)+IF(D76="YES",C76,0)+IF(D77="YES",C77,0),0))) -> 0 | F75: Loan min | G75: Loan max | H75: EWS | I75: NI
B76: Limited co | C76: 300 | D76: ='BTL Quote'!C7 -> <Select> | F76: 0 | G76: 0 | H76: 0 | I76: 0
B77: Leasehold | C77: 300 | D77: ='BTL Quote'!C28 -> <Complete> | F77: =G76+1 -> 1 | G77: 250000 | H77: =700*1.2 -> 840 | I77: 1489
F78: =G77+1 -> 250001 | G78: 500000 | H78: =800*1.2 -> 960 | I78: 1489
F79: =G78+1 -> 500001 | G79: 750000 | H79: =875*1.2 -> 1050 | I79: 1489
F80: =G79+1 -> 750001 | G80: 1000000 | H80: 1110 | I80: 1489
F81: =G80+1 -> 1000001 | H81: 1200 | I81: 1489
B83: Valuation Fee
B84: This Plan | C84: =IFERROR(VLOOKUP(C88,C90:D97,2,FALSE),IF(D86=1,"Add Val",IF(C4="N","Refer",IF(C4="S",VLOOKUP(C86,L86:N97,3,TRUE),VLOOKUP(C86,F86:H96,3,TRUE))))) -> Add Val | F84: E&W | L84: Scotland
F85: Value min | G85: Value Max | H85: Fee | L85: Value min | M85: Value Max | N85: Fee
B86: Prop Val | C86: ='BTL Quote'!C23 -> <Complete> | D86: ='BTL Quote'!D23 -> 1 | F86: 0 | G86: 200000 | H86: 220 | L86: 0 | M86: 100000 | N86: 245
F87: =G86+1 -> 200001 | G87: 300000 | H87: 250 | L87: =M86+1 -> 100001 | M87: 200000 | N87: 285
B88: Plan Type | C88: ='BTL Quote'!C10 -> <Select> | F88: 300001 | G88: 350000 | H88: 275 | L88: 200001 | M88: 300000 | N88: 335
F89: 350001 | G89: 400000 | H89: 280 | L89: 300001 | M89: 400000 | N89: 400
B90: TBC Val Fee | C90: MUFB | D90: TBC | F90: 400001 | G90: 500000 | H90: 350 | L90: 400001 | M90: 500000 | N90: 475
C91: HMO | D91: TBC | F91: 500001 | G91: 600000 | H91: 490 | L91: 500001 | M91: 600000 | N91: 620
D92: TBC | F92: 600001 | G92: 700000 | H92: 600 | L92: 600001 | M92: 700000 | N92: 630
D93: TBC | F93: 700001 | G93: 800000 | H93: 700 | L93: 700001 | M93: 750000 | N93: 700
D94: TBC | F94: 800001 | G94: 900000 | H94: 775 | L94: 750001 | M94: 800000 | N94: 860
D95: TBC | F95: 900001 | G95: 1000000 | H95: 850 | L95: 800001 | M95: 900000 | N95: 865
D96: TBC | F96: 1000001 | G96: 9999999999 | H96: On request | L96: 900001 | M96: 1000000 | N96: 890
D97: TBC | L97: 1000001 | M97: 999999999 | N97: On request
B99: Max Lending Broker | I99: Max Lending Direct
B100: Max Sec Lending End | C100: =('BTL Quote'!C23*D36)-IF('BTL Quote'!D34=0,0,'BTL Quote'!C34) ->  | I100: Max Sec Lending End | J100: =('BTL Quote'!C23*D36)-IF('BTL Quote'!D34=0,0,'BTL Quote'!C34) -> 
B101: Max Sec Lending Start | C101: =C100 ->  | I101: Max Sec Lending Start | J101: =J100 -> 
B102: Lender fee % | C102: =IF(C23=TRUE,0,IF(C3="B",C59,0)) -> 0.03 | I102: Lender fee % | J102: =IF(C23=TRUE,0,IF(C3="D",IF(C26=TRUE,Q61,VLOOKUP(J101,O58:Q61,3,TRUE)),0)) -> 0
B103: Broker Fee £ | C103: =IF(C22=TRUE,0,F40) -> 0 | I103: Broker Fee £
B104: Lender Fee £ | C104: =IF(C23=TRUE,0,IF(C3="B",C60+C61,F41)) -> 0 | I104: Lender Fee £ | J104: =IF(C23=TRUE,0,IF(C3="D",IF(C26=TRUE,P61,VLOOKUP(J101,O58:Q61,2,TRUE)),0)) -> 0
B105: Title Insurance | C105: =G42 -> 0 | I105: Title Insurance | J105: =G42 -> 0
C106: Lower TI | D106: Higher TI | E106: High Net | J106: Lower TI | K106: Higher TI | L106: High Net
C107: =IF(C105=0,0,G65) -> 0 | D107: =IF(C105=0,0,G66) -> 0 | E107: =F66 -> 300000 | J107: =IF(J105=0,0,N65) -> 0 | K107: =IF(J105=0,0,N66) -> 0 | L107: =F66 -> 300000
B108: Max Adjusted for TI | C108: =MIN(ROUNDDOWN((C101-C103-C104-C107)/(1+C102),0),C44) ->  | D108: =MIN(ROUNDDOWN((C101-C103-C104-D107)/(1+C102),0),C44) ->  | E108: =E107-1 -> 299999 | F108: Different if the loan amount goes over the TI limit | I108: Max Adjusted for TI | J108: =MIN(ROUNDDOWN((J101-J103-J104-J107)/(1+J102),0),C44) ->  | K108: =MIN(ROUNDDOWN((J101-J103-J104-K107)/(1+J102),0),C44) ->  | L108: =L107-1 -> 299999 | M108: Different if the loan amount goes over the TI limit
B109: Max Net | C109: =IF(C108<E107,C108,IF(D108>=E107,D108,E108)) ->  | I109: Max Net | J109: =IF(J108<L107,J108,IF(K108>=L107,K108,L108)) -> 
B111: Criteria Highlights
B112: Use (this application) | E112: BTL | F112: HMO | G112: Holiday Let | H112: Student Let | I112: MUFB | J112: HO Business Loan
B113: ='BTL Quote'!C10 -> <Select> | E113: 2 | F113: 3 | G113: 4 | H113: 5 | I113: 6 | J113: 7
B114: =VLOOKUP(D114,$D$114:$J$121,HLOOKUP($B$113,$E$112:$J$113,2,FALSE),FALSE) ->  | D114: 1 | E114: AST required | F114: Licence required or proof applied | G114: If doesn’t have own residence - refer | H114: ASTs required for all tenants | I114: ASTs required for all tenants | J114: Broker must have credit broking permissions
B115: =VLOOKUP(D115,$D$114:$J$121,HLOOKUP($B$113,$E$112:$J$113,2,FALSE),FALSE) ->  | D115: 2 | E115: Proof of last month's rent | F115: Max 8 beds - refer if more | G115: Use 100% profit on SA3402 or accounts cert | H115: If AST is for uni year - average over 12 months | I115: If over 4 units - refer | J115: No LTD company applications
D116: 3 | E116: Can top up with surplus rental | F116: ASTs required for all tenants | G116: If owned less than a year - use 50% of projection | H116: Proof of last month's rent | I116: Full val usually required - AVM on referral | J116: Majority of loan must be for business purposes
D117: 4 | E117: Can top up with personal income | F117: Val based on resi value | G117: AVMs accepted | H117: LTD company or personal applications | I117: Proof of last month's rent | J117: 2nd charge only
D118: 5 | E118: EPC must be E or better | F118: AVMs accepted | G118: Must be on mutiple letting sites | H118: Can top up with surplus rental | I118: LTD company or personal applications | J118: Minimum loan of 25k
D119: 6 | E119: LTD company or personal applications | F119: Proof of last month's rent or deposit | H119: Can top up with personal income | I119: Can top up with surplus rental | J119: AVMs accepted
D120: 7 | F120: LTD company or personal applications | H120: AVMs accepted | I120: Can top up with personal income
B121: =IF(C4="N",M121,"") ->  | D121: 8 | L121: NI Only | M121: If a cross charge additional fees may apply
B123: Notes | C123: =SUM(C127:C135) -> 1 | D123: Total Errors
B124: Index | C124: Applies
B125: =C125 -> 0 | C125: =IF(C18="Y",1,0) -> 0 | D125: HOBL second charge only
B126: =B125 -> 0
B127: =IF($B$126>0,B126,B126+C127) -> 1 | C127: =IF(AND(C10="N",C129=0),1,0) -> 1 | D127: Complete all inputs
B128: =IF($B$126>0,B127,B127+C128) -> 1 | C128: =IF(C46="Y",1,0) -> 0 | D128: Fix exceeds term
B129: 1 | C129: =IF(C13="N",1,0) -> 0 | D129: Delete 1st charge details
B130: 1 | C130: =IFERROR(F45,0) -> 0 | D130: LTV exceeds max
B131: 1 | C131: =IFERROR(IF(J40="Y",1,0),0) -> 0 | D131: Net loan exceeds max
B132: 1 | C132: =IF(J39="Y",1,0) -> 0 | D132: Net loan below min
B133: 1 | C133: =IF(C11="N",1,0) -> 0 | D133: Add 1st charge details
B134: 1 | C134: =IF(J41="Y",1,0) -> 0 | D134: Broker fee too high (max 15% net loan / £10k)
B135: 1 | C135: =IF(AND(D76="Yes",C16="Y"),1,0) -> 0 | D135: No Ltd Co on HOBL
B139: ONS Calculation | H139: Household Makeup
C140: No | D140: Factor | E140: Score | I140: Adults | J140: ='BTL Quote'!L3 -> <Select> | K140: Y/O
B141: 1st adult | C141: 1 | D141: =ONS!C7 -> 1 | E141: =D141*C141 -> 1 | I141: No Dep | J141: ='BTL Quote'!L4 -> <Select>
B142: Other adult | C142: =J140-C141 ->  | D142: =ONS!C8 -> 0.7 | E142: =D142*C142 ->  | H142: 1 | I142: Dep 1 | J142: =IF(H142>$J$141,"",IF(OR('BTL Quote'!L5="",'BTL Quote'!L5="<Select>"),"M",'BTL Quote'!L5)) -> M | K142: =IF(J142="","",IF(J142>ONS!$C$12,"O","Y")) -> O
B143: Older child | C143: =COUNTIF($K$142:$K$146,F143) -> 5 | D143: =ONS!C9 -> 0.67 | E143: =D143*C143 -> 3.35 | F143: O | H143: 2 | I143: Dep 2 | J143: =IF(H143>$J$141,"",IF(OR('BTL Quote'!L6="",'BTL Quote'!L6="<Select>"),"M",'BTL Quote'!L6)) -> M | K143: =IF(J143="","",IF(J143>ONS!$C$12,"O","Y")) -> O
B144: Younger child | C144: =COUNTIF($K$142:$K$146,F144) -> 0 | D144: =ONS!C10 -> 0.33 | E144: =D144*C144 -> 0 | F144: Y | H144: 3 | I144: Dep 3 | J144: =IF(H144>$J$141,"",IF(OR('BTL Quote'!L7="",'BTL Quote'!L7="<Select>"),"M",'BTL Quote'!L7)) -> M | K144: =IF(J144="","",IF(J144>ONS!$C$12,"O","Y")) -> O
B145: Total | E145: =SUM(E141:E144) ->  | H145: 4 | I145: Dep 4 | J145: =IF(H145>$J$141,"",IF(OR('BTL Quote'!L8="",'BTL Quote'!L8="<Select>"),"M",'BTL Quote'!L8)) -> M | K145: =IF(J145="","",IF(J145>ONS!$C$12,"O","Y")) -> O
H146: 5 | I146: Dep 5 | J146: =IF(H146>$J$141,"",IF(OR('BTL Quote'!L9="",'BTL Quote'!L9="<Select>"),"M",'BTL Quote'!L9)) -> M | K146: =IF(J146="","",IF(J146>ONS!$C$12,"O","Y")) -> O
B147: Quintile | C147: =VLOOKUP(I147,ONS!N7:P11,3,TRUE) ->  | H147: Annual income | I147: ='BTL Quote'!L14 -> <Complete>
B148: Model | C148: =IF(J141>0,ONS!F9,IF(J140>1,ONS!F8,ONS!F7)) -> A56
B149: Lookup | C149: ="Q"&C147&C148 -> 
B151: 1st adult cost | C151: =HLOOKUP(C149,ONS!C16:U18,3,FALSE) -> 
B152: Family cost | C152: =C151*E145 -> 
B153: Buffer | C153: =ONS!C11 -> 150
B154: Total expenditure | C154: =ROUND(SUM(C152:C153),2) -> 
B161: Affordability | E161: Use Wording | H161: Pass Wording | L161: Fail Wording
B162: Requires Affordability | C162: =IF(J42="Y","N",IF(AND(C10="Y",OR('BTL Quote'!F28<>"Fits Rent",C16="Y")),"Y","N")) -> N | E162: =IF($C$167="FAIL",L162,IF($C$167="PASS",H162,C168)) -> Fails rental income - Complete affordability details | H162: This application has passed the affordability | L162: This application has failed the affordability
B163: Stressed Shortfall | C163: ='BTL Quote'!F28 ->  | E163: =IF($C$167="FAIL",L163,IF($C$167="PASS",H163,"")) ->  | H163: decision, and no further documentation is | L163: decision, as the available income is not
B164: Mortgage buffer | C164: =IFERROR(IF(C16="Y",'BTL Quote'!C34*C71/12,'BTL Quote'!L17*C71/12),0) -> 0 | E164: =IF($C$167="FAIL",L164,IF($C$167="PASS",H164,"")) ->  | H164: required to support the affordability on this | L164: sufficient to cover the outgoings detailed, and
B165: Net income | C165: =IF('BTL Quote'!N4=1,0,'BTL Quote'!L12)+IF('BTL Quote'!L13="<Optional>",0,'BTL Quote'!L13) -> 0 | E165: =IF($C$167="FAIL",L165,IF($C$167="PASS",H165,"")) ->  | H165: application. | L165: based upon national averages, still leave
B166: Surplus | C166: =IF(C16="Y",C184,D184) ->  | E166: =IF($C$167="FAIL",L166,"") ->  | L166: sufficient money to cover all other
B167: Outcome | C167: =IF(OR(C175>0,C163="Fits Rent"),"TBC",IF(C166>0,"PASS","FAIL")) -> TBC | E167: =IF($C$167="FAIL",L167,"") ->  | L167: expenditure in a sustainable manner for the
B168: Message | C168: =VLOOKUP(1,H172:I174,2,FALSE) -> Fails rental income - Complete affordability details | E168: =IF($C$167="FAIL",L168,"") ->  | L168: life of the loan.
B170: Outstanding | C170: 0 | H170: Affordability message
B171: Household | C171: =C170+IF(OR(J140=0,J140="<Select>",J141="<Select>",J141="",COUNTIF(J142:J146,"M")>0),1,0) -> 1 | D171: Complete household size | H171: Use
B172: Income | C172: =C171+IFERROR(IF(OR(C165=0,I147=0),1,0),1) -> 2 | D172: Add household income | H172: =IF(C16="Y",1,0) -> 0 | I172: HOBL - Complete affordability details
B173: Mortgage | C173: =C172+IF(C16="Y",0, IF(AND('BTL Quote'!L18<>"",'BTL Quote'!L18<>"<Complete>"),0,1)) -> 3 | D173: Add mortgage payment | H173: =IF(C163="Fits Rent",1,0) -> 0 | I173: Fits on rental income
B174: Valid Loan | C174: =C173+IF('BTL Quote'!F10="",1,0) -> 4 | D174: A valid MT loan quote | H174: =IF(SUM(H172:H173)=0,1,0) -> 1 | I174: Fails rental income - Complete affordability details
C175: =C174 -> 4
B177: Affordability Calculation | C177: HOBL | D177: Other
B178: Income | C178: ='BTL Quote'!L12+IF('BTL Quote'!L13="<Optional>",0,'BTL Quote'!L13) ->  | D178: =C178 -> 
B179: Resi Mort / rent | C179: 0 | D179: ='BTL Quote'!L18 -> <Complete>
B180: Total cred commitments | C180: ='BTL Quote'!$L$26 -> 0 | D180: ='BTL Quote'!$L$26 -> 0
B181: Mortgage buffer | C181: =$C$164 -> 0 | D181: =$C$164 -> 0
B182: BTL Loan shortfall | C182: 0 | D182: ='BTL Quote'!L19 -> 
B183: ONS | C183: =$C$154 ->  | D183: =$C$154 -> 
B184: Surplus | C184: =C178-SUM(C179:C183) ->  | D184: =D178-SUM(D179:D183) -> 

Sheet BTL Matrix
B2: Term Loan Product Matrix
B3: Security | C3: 1st charge | F3: 2nd charge
B4: Charge | C4: 1 | D4: 1 | E4: 1 | F4: 2 | G4: 2 | H4: 2
B5: Status | C5: 0 | D5: 1 | E5: 2 | F5: 0 | G5: 1 | H5: 2
B6: Plan code (charge-status) | C6: =C4&"-"&C5 -> 1-0 | D6: =D4&"-"&D5 -> 1-1 | E6: 1-2 | F6: 2-0 | G6: 2-1 | H6: 2-2
B7: Max LTV | C7: 0.75 | D7: 0.75 | E7: 0.7 | F7: 0.75 | G7: 0.75 | H7: 0.7
B8: Min Net | C8: 10000 | D8: 10000 | E8: 10000 | F8: 10000 | G8: 10000 | H8: 10000
B9: Max Net | C9: 750000 | D9: 750000 | E9: 250000 | F9: 500000 | G9: 300000 | H9: 100000
A10: Code | B10: Rates | I10: Lookup
A11: V | B11: Variable | C11: 0.1164 | D11: 0.1189 | E11: 0.1214 | F11: 0.1179 | G11: 0.1204 | H11: 0.1229 | I11: =ROW(H11)-ROW($H$6)+1 -> 6
A12: 2 | B12: 2yr fixed | C12: 0.1126 | D12: 0.1151 | E12: 0.1176 | F12: 0.1141 | G12: 0.1166 | H12: 0.1191 | I12: =ROW(H12)-ROW($H$6)+1 -> 7
A13: 2N | B13: 2yr fixed no ERCs | C13: 0.1176 | D13: 0.1191 | E13: 0.1226 | F13: 0.1191 | G13: 0.1216 | H13: 0.1241 | I13: 8
A14: 3 | B14: 3yr fixed | C14: 0.1126 | D14: 0.1151 | E14: 0.1176 | F14: 0.1141 | G14: 0.1166 | H14: 0.1191 | I14: 9
A15: 5 | B15: 5yr fixed | C15: 0.113 | D15: 0.1155 | E15: 0.118 | F15: 0.1145 | G15: 0.1175 | H15: 0.12 | I15: 10
A16: 5N | B16: 5yr fixed no ERCs | C16: 0.118 | D16: 0.1205 | E16: 0.123 | F16: 0.1195 | G16: 0.1225 | H16: 0.125 | I16: 11
I17: 12
I18: 13
B19: Other
B20: ="Commission"&IF(B23<>0,"*","") -> Commission | C20: 0.02 | D20: 0.02 | E20: 0.02 | F20: 0.02 | G20: 0.02 | H20: 0.02
B21: NI Max Net | C21: 150000 | D21: 150000 | E21: 150000 | F21: 150000 | G21: 150000 | H21: =H9 -> 100000
B22: HOBL Min Net | F22: 25000 | G22: Second Charge only
B23: ='BTL Workings'!F58 -> 0 | C23: =IF(B23<>0,"* This commission will be reduced by "&B23*100&"% to offset the lender fee","") -> 

Sheet Marketing Words (hidden)
A1: Date | B1: =NOW() -> 2026-04-02T11:14:23.640 | C1: Current Wordings | E1: Standard Wordings | F1: Seasonal Wordings | G1: 1 | H1: =G1+1 -> 2 | I1: =H1+1 -> 3 | J1: 4 | K1: 5 | L1: 6 | M1: 7 | N1: 8 | O1: 9 | P1: 10 | Q1: 11 | R1: 12
A2: Offset use | B2: =IFERROR(HLOOKUP(1,G4:R5,2,FALSE),E5) -> 0 | F2: From Date | G2: 2026-02-25
F3: To Date | G3: 2026-03-15
F4: Applies | G4: =IF(AND(G2<=$B$1,G3>=$B$1),1,0) -> 0 | H4: =IF(AND(H2<=$B$1,H3>=$B$1),1,0) -> 0 | I4: 0 | J4: 0 | K4: 0 | L4: 0 | M4: 0 | N4: 0 | O4: 0 | P4: 0 | Q4: 0 | R4: 0
D5: Offset | E5: 0 | F5: Offset | G5: 2 | H5: =G5+1 -> 3 | I5: =H5+1 -> 4 | J5: 5 | K5: 6 | L5: 7 | M5: 8 | N5: 9 | O5: 10 | P5: 11 | Q5: 12 | R5: 13
B6: 1 | C6: =IF(OFFSET(E6,0,$B$2)="","",OFFSET(E6,0,$B$2)) -> Speedy lending for complex needs, with a personal touch | E6: Speedy lending for complex needs, with a personal touch | G6: NEW - Now offering up to 75% LTV in Northern Ireland
B7: =IF(C7="","",B6+1) -> 2 | C7: =IF(OFFSET(E7,0,$B$2)="","",OFFSET(E7,0,$B$2)) -> Each application is assessed by a member of our team—not a computer | E7: Each application is assessed by a member of our team—not a computer | G7: NEW – Second charge loan size increased to 500k
B8: =IF(C8="","",B7+1) -> 3 | C8: Looking for a quick, straightforward, and flexible lending solution tailored to your customer's needs? | E8: Looking for a quick, straightforward, and flexible lending solution tailored to your customer's needs? | G8: NEW – Terms now available up to 360 months
B9: 4 | C9: We're here with our common sense lending approach to help you and your customers | E9: We're here with our common sense lending approach to help you and your customers | G9: NEW - AVMs available on purchases
B10: 5 | C10: We can get the funds needed in your customer's bank account in a matter of days | E10: We can get the funds needed in your customer's bank account in a matter of days
B11: 6 | C11: We offer flexible solutions for your customer's complex needs | E11: We offer flexible solutions for your customer's complex needs
B12: 7 | C12: Whether your customer has a less-than-perfect credit score, a property with non-traditional construction, or needs funds quickly — we’re here to help! | E12: Whether your customer has a less-than-perfect credit score, a property with non-traditional construction, or needs funds quickly — we’re here to help!
B13: 8 | C13: Lending across the UK: England, Wales, Scotland, and Northern Ireland | E13: Lending across the UK: England, Wales, Scotland, and Northern Ireland
B14: 9 | C14: Borrow from £10,000 to £500,000 | E14: Borrow from £10,000 to £500,000
B15: 10 | C15: Borrow up to 75% Loan-to-Value (LTV) | E15: Borrow up to 75% Loan-to-Value (LTV)
B16: 11 | C16: Available on: Standard Buy to Lets, Holiday Lets, HMOs, MUFB, and Student Lets | E16: Available on: Standard Buy to Lets, Holiday Lets, HMOs, MUFB, and Student Lets
B17: 12 | C17: Personal & Limited company borrowers welcome | E17: Personal & Limited company borrowers welcome
B18: 13 | C18: Lower value properties, from just £75,000 | E18: Lower value properties, from just £75,000
B19: 14 | C19: Business loans on residence accepted (2nd charge only) | E19: Business loans on residence accepted (2nd charge only)
B20: 15 | C20: Flexible Term Loans for all types of landlords | E20: Flexible Term Loans for all types of landlords
B21: 16 | C21: Our Term Loan solutions are designed to suit landlords at every stage—no matter their experience | E21: Our Term Loan solutions are designed to suit landlords at every stage—no matter their experience
B22: 17 | C22: Fast access to business funding without re-mortgaging | E22: Fast access to business funding without re-mortgaging
B23: =IF(C23="","",B22+1) -> 
B24: =IF(C24="","",B23+1) -> 
B25: =IF(C25="","",B24+1) -> 

Sheet BR Quote History
B1: =A1-1 -> -1 | C1: =MAX(C2:AK2)-1 -> 0
B2: Quote No | C2: To retrieve | D2: =COUNTA(D9:$AP$9) -> 1 | H2: 0 | I2: -1 | J2: -2 | K2: -3 | L2: -4 | M2: -5 | N2: -6 | O2: -7 | P2: -8 | Q2: -5 | R2: -6 | S2: -7 | T2: -8
A3: 2 | B3: Date
A4: =A3+1 -> 3 | B4: Different Quote | C4: =+IF(SUM(C7:C51,C64)=0,"ERROR","OK") -> ERROR | D4: =IF('BR Workings'!$C$10="N","N",IF(D5<>E5,"Y","N")) -> N
A5: 4 | B5: Index | D5: =D9&"-"&D10&"-"&D11&"-"&D12&"-"&D13&"-"&D14&"-"&D15&"-"&D16&"-"&D17&"-"&D18&"-"&D19&"-"&D20&"-"&D21&"-"&D22&"-"&D23&"-"&D24&"-"&D25&"-"&D26&"-"&D27&"-"&D28&"-"&D29&"-"&D30&"-"&D31&"-"&D32&"-"&D33&"-"&D34&"-"&D35&"-"&D36&"-"&D37&"-"&D38&"-"&D39&"-"&D40&"-"&D41&"-"&D42&"-"&D43&"-"&D44&"-"&D45&"-"&D46&"-"&D47&"-"&D48&"-"&D49&"-"&D50&"-"&D51&D64 -> <Select>-<Select>-<Select>-<Select>-<Select>-<Complete>-<Complete>-<Optional>-0-<Complete>-<Select>-<Select>-<Complete>-<Optional>-<Select>-<Select>-<Complete>-<Complete>-<Complete>-FALSE-FALSE-FALSE-FALSE-FALSE-FALSE-FALSE-<Select>-<Complete>-<Select>-<Select>-<Select>-<Select>-<Select>-<Select>-<Select>-<Complete>-<Optional>-<Complete>-<Complete>-<Complete>-<Optional>-<Optional>-<Optional>FALSE
A6: 5 | B6: Short Plan | D6: =D9&"-"&D10&"-"&D11&"-"&D12&"-"&D13 -> <Select>-<Select>-<Select>-<Select>-<Select>
A7: 6 | B7: Applicant Name | C7: =OFFSET(C7,0,'Quote History'!$E$21+1) -> <Complete> | D7: =IF('Bridge Quote'!$C3="","",'Bridge Quote'!$C3) -> <Complete>
A8: 7 | B8: Security Address | C8: =OFFSET(C8,0,'Quote History'!$E$21+1) -> <Complete> | D8: =IF('Bridge Quote'!$C5="","",'Bridge Quote'!$C5) -> <Complete>
A9: 8 | B9: Security Type | C9: =OFFSET(C9,0,'Quote History'!$E$21+1) -> <Select> | D9: =IF('Bridge Quote'!$C10="","",'Bridge Quote'!$C10) -> <Select>
A10: 9 | B10: Product Type | C10: =OFFSET(C10,0,'Quote History'!$E$21+1) -> <Select> | D10: =IF('Bridge Quote'!$C11="","",'Bridge Quote'!$C11) -> <Select>
A11: 10 | B11: Repayment Type | C11: =OFFSET(C11,0,'Quote History'!$E$21+1) -> <Select> | D11: =IF('Bridge Quote'!$C12="","",'Bridge Quote'!$C12) -> <Select>
A12: 11 | B12: Status | C12: =OFFSET(C12,0,'Quote History'!$E$21+1) -> <Select> | D12: =IF('Bridge Quote'!$C13="","",'Bridge Quote'!$C13) -> <Select>
A13: 12 | B13: Rate Type | C13: =OFFSET(C13,0,'Quote History'!$E$21+1) -> <Select> | D13: =IF('Bridge Quote'!$C14="","",'Bridge Quote'!$C14) -> <Select>
A14: 13 | B14: Term (months) | C14: =OFFSET(C14,0,'Quote History'!$E$21+1) -> <Complete> | D14: =IF('Bridge Quote'!$C15="","",'Bridge Quote'!$C15) -> <Complete>
A15: 14 | B15: Net Loan | C15: =OFFSET(C15,0,'Quote History'!$E$21+1) -> <Complete> | D15: =IF('Bridge Quote'!$C17="","",'Bridge Quote'!$C17) -> <Complete>
A16: 15 | B16: Broker Fee | C16: =OFFSET(C16,0,'Quote History'!$E$21+1) -> <Optional> | D16: =IF('Bridge Quote'!$C18="","",'Bridge Quote'!$C18) -> <Optional>
A17: 16 | B17: Lender Fee | C17: =OFFSET(C17,0,'Quote History'!$E$21+1) -> 0 | D17: =IF('Bridge Quote'!$C19="","",'Bridge Quote'!$C19) -> 0
A18: 17 | B18: Value | C18: =OFFSET(C18,0,'Quote History'!$E$21+1) -> <Complete> | D18: =IF('Bridge Quote'!$C23="","",'Bridge Quote'!$C23) -> <Complete>
A19: 18 | B19: Location | C19: =OFFSET(C19,0,'Quote History'!$E$21+1) -> <Select> | D19: =IF('Bridge Quote'!$C24="","",'Bridge Quote'!$C24) -> <Select>
A20: 19 | B20: Type | C20: =OFFSET(C20,0,'Quote History'!$E$21+1) -> <Select> | D20: =IF('Bridge Quote'!$C25="","",'Bridge Quote'!$C25) -> <Select>
A21: 20 | B21: Rental Income | C21: =OFFSET(C21,0,'Quote History'!$E$21+1) -> <Complete> | D21: =IF('Bridge Quote'!$C26="","",'Bridge Quote'!$C26) -> <Complete>
A22: 21 | B22: Rental Surplus | C22: =OFFSET(C22,0,'Quote History'!$E$21+1) -> <Optional> | D22: =IF('Bridge Quote'!$C27="","",'Bridge Quote'!$C27) -> <Optional>
A23: 22 | B23: Repayment Type | C23: =OFFSET(C23,0,'Quote History'!$E$21+1) -> <Select> | D23: =IF('Bridge Quote'!$C31="","",'Bridge Quote'!$C31) -> <Select>
A24: 23 | B24: Rate Type (remaining fix) | C24: =OFFSET(C24,0,'Quote History'!$E$21+1) -> <Select> | D24: =IF('Bridge Quote'!$C32="","",'Bridge Quote'!$C32) -> <Select>
A25: 24 | B25: Remaining Term (m) | C25: =OFFSET(C25,0,'Quote History'!$E$21+1) -> <Complete> | D25: =IF('Bridge Quote'!$C33="","",'Bridge Quote'!$C33) -> <Complete>
A26: 25 | B26: Balance | C26: =OFFSET(C26,0,'Quote History'!$E$21+1) -> <Complete> | D26: =IF('Bridge Quote'!$C34="","",'Bridge Quote'!$C34) -> <Complete>
A27: 26 | B27: Monthly Payment | C27: =OFFSET(C27,0,'Quote History'!$E$21+1) -> <Complete> | D27: =IF('Bridge Quote'!$C35="","",'Bridge Quote'!$C35) -> <Complete>
A28: 27 | B28: Tick boxes | C28: =OFFSET(C28,0,'Quote History'!$E$21+1) -> FALSE | D28: =IF('Bridge Quote'!$C38="","",'Bridge Quote'!$C38) -> FALSE
A29: 28 | B29: 1st time LL | C29: =OFFSET(C29,0,'Quote History'!$E$21+1) -> FALSE | D29: =IF('Bridge Quote'!$C39="","",'Bridge Quote'!$C39) -> FALSE
A30: 29 | B30: Packaged | C30: =OFFSET(C30,0,'Quote History'!$E$21+1) -> FALSE | D30: =IF('Bridge Quote'!$C40="","",'Bridge Quote'!$C40) -> FALSE
A31: 30 | B31: B fee UF | C31: =OFFSET(C31,0,'Quote History'!$E$21+1) -> FALSE | D31: =IF('Bridge Quote'!$C41="","",'Bridge Quote'!$C41) -> FALSE
A32: 31 | B32: L fee UF | C32: =OFFSET(C32,0,'Quote History'!$E$21+1) -> FALSE | D32: =IF('Bridge Quote'!$C42="","",'Bridge Quote'!$C42) -> FALSE
A33: 32 | B33: Add TI | C33: =OFFSET(C33,0,'Quote History'!$E$21+1) -> FALSE | D33: =IF('Bridge Quote'!$C43="","",'Bridge Quote'!$C43) -> FALSE
A34: 33 | B34: Del Max | C34: =OFFSET(C34,0,'Quote History'!$E$21+1) -> FALSE | D34: =IF('Bridge Quote'!$C44="","",'Bridge Quote'!$C44) -> FALSE
A35: 34 | B35: Is Borrower a Ltd Co? | C35: =OFFSET(C35,0,'Quote History'!$E$21+1) -> <Select> | D35: =IF('Bridge Quote'!$C7="","",'Bridge Quote'!$C7) -> <Select>
A36: 35 | B36: Is Property Leasehold? | C36: =OFFSET(C36,0,'Quote History'!$E$21+1) -> <Complete> | D36: =IF('Bridge Quote'!$C28="","",'Bridge Quote'!$C28) -> <Complete>
A37: 36 | B37: Number of Adults | C37: =OFFSET(C37,0,'Quote History'!$E$21+1) -> <Select> | D37: =IF('Bridge Quote'!$L3="","",'Bridge Quote'!$L3) -> <Select>
A38: 37 | B38: Number of Dependants | C38: =OFFSET(C38,0,'Quote History'!$E$21+1) -> <Select> | D38: =IF('Bridge Quote'!$L4="","",'Bridge Quote'!$L4) -> <Select>
A39: 38 | B39: Dependant 1 - age | C39: =OFFSET(C39,0,'Quote History'!$E$21+1) -> <Select> | D39: =IF('Bridge Quote'!$L5="","",'Bridge Quote'!$L5) -> <Select>
A40: 39 | B40: Dependant 2 - age | C40: =OFFSET(C40,0,'Quote History'!$E$21+1) -> <Select> | D40: =IF('Bridge Quote'!$L6="","",'Bridge Quote'!$L6) -> <Select>
A41: 40 | B41: Dependant 3 - age | C41: =OFFSET(C41,0,'Quote History'!$E$21+1) -> <Select> | D41: =IF('Bridge Quote'!$L7="","",'Bridge Quote'!$L7) -> <Select>
A42: 41 | B42: Dependant 4 - age | C42: =OFFSET(C42,0,'Quote History'!$E$21+1) -> <Select> | D42: =IF('Bridge Quote'!$L8="","",'Bridge Quote'!$L8) -> <Select>
A43: 42 | B43: Dependant 5 - age | C43: =OFFSET(C43,0,'Quote History'!$E$21+1) -> <Select> | D43: =IF('Bridge Quote'!$L9="","",'Bridge Quote'!$L9) -> <Select>
A44: 43 | B44: Applicant 1 | C44: =OFFSET(C44,0,'Quote History'!$E$21+1) -> <Complete> | D44: =IF('Bridge Quote'!$L12="","",'Bridge Quote'!$L12) -> <Complete>
A45: 44 | B45: Applicant 2 | C45: =OFFSET(C45,0,'Quote History'!$E$21+1) -> <Optional> | D45: =IF('Bridge Quote'!$L13="","",'Bridge Quote'!$L13) -> <Optional>
A46: 45 | B46: GROSS ANNUAL Income | C46: =OFFSET(C46,0,'Quote History'!$E$21+1) -> <Complete> | D46: =IF('Bridge Quote'!$L14="","",'Bridge Quote'!$L14) -> <Complete>
A47: 46 | B47: Residential Mortgage(s) Bal | C47: =OFFSET(C47,0,'Quote History'!$E$21+1) -> <Complete> | D47: =IF('Bridge Quote'!$L17="","",'Bridge Quote'!$L17) -> <Complete>
A48: 47 | B48: Resi Mort/Rent Pmt | C48: =OFFSET(C48,0,'Quote History'!$E$21+1) -> <Complete> | D48: =IF('Bridge Quote'!$L18="","",'Bridge Quote'!$L18) -> <Complete>
A49: 48 | B49: Credit Cards | C49: =OFFSET(C49,0,'Quote History'!$E$21+1) -> <Optional> | D49: =IF('Bridge Quote'!$L22="","",'Bridge Quote'!$L22) -> <Optional>
A50: 49 | B50: Unsecured Credit | C50: =OFFSET(C50,0,'Quote History'!$E$21+1) -> <Optional> | D50: =IF('Bridge Quote'!$L23="","",'Bridge Quote'!$L23) -> <Optional>
A51: 50 | B51: School Fees/Childcare/Other | C51: =OFFSET(C51,0,'Quote History'!$E$21+1) -> <Optional> | D51: =IF('Bridge Quote'!$L24="","",'Bridge Quote'!$L24) -> <Optional>
A52: 51
A53: 52 | B53: Net Loan | D53: ='Bridge Quote'!$F3 -> 
A54: 53 | B54: Lender Fee | D54: ='Bridge Quote'!$F4 -> 
A55: 54 | B55: Title Insurance | D55: ='Bridge Quote'!$F5 -> 
A56: 55 | B56: Broker Fee | D56: ='Bridge Quote'!$F6 -> 
A57: 56 | B57: Gross Loan | D57: ='Bridge Quote'!$F8 -> 
A58: 57 | B58: Monthly Interest Rate | D58: ='BR Workings'!$C41 -> 
A59: 58 | B59: 1m Interest | D59: ='Bridge Quote'!$F10 -> 
A60: 59 | B60: Interest over term | D60: ='Bridge Quote'!$F11 -> 
A61: 60 | B61: Total Loan | D61: ='Bridge Quote'!$F12 -> 
A62: 61 | B62: LTV | D62: ='Bridge Quote'!$F13 -> 
A63: 62
A64: 63 | B64: Bridge Extension | C64: =OFFSET(C34,0,'Quote History'!$E$21+1) -> FALSE | D64: =IF('Bridge Quote'!$C45="","",'Bridge Quote'!$C45) -> FALSE

Sheet BTL Quote History
B1: =A1-1 -> -1 | C1: =MAX(C2:CK2)-1 -> 0
B2: Quote No | C2: To retrieve | D2: =COUNTA(D9:$CA$9) -> 1 | J2: 0 | K2: -1 | L2: -2 | M2: -3 | N2: -4 | O2: -5 | P2: -6 | Q2: -7 | R2: -8 | S2: -9 | T2: -10 | U2: -8 | V2: -9 | W2: -9 | X2: -7 | Y2: -8 | Z2: -9 | AA2: -8 | AB2: -9 | AC2: -8 | AD2: -8 | AE2: -8
A3: 2 | B3: Date | D3: 2026-02-24T11:58:08.370
A4: =A3+1 -> 3 | B4: Different Quote | C4: =+IF(SUM(C7:C51,C64)=0,"ERROR","OK") -> ERROR | D4: =IF('BTL Workings'!$C$10="N","N",IF(D5<>E5,"Y","N")) -> N
A5: 4 | B5: Index | D5: =D9&"-"&D10&"-"&D11&"-"&D12&"-"&D13&"-"&D14&"-"&D15&"-"&D16&"-"&D17&"-"&D18&"-"&D19&"-"&D20&"-"&D21&"-"&D22&"-"&D23&"-"&D24&"-"&D25&"-"&D26&"-"&D27&"-"&D28&"-"&D29&"-"&D30&"-"&D31&"-"&D32&"-"&D33&"-"&D34&"-"&D35&"-"&D36&"-"&D37&"-"&D38&"-"&D39&"-"&D40&"-"&D41&"-"&D42&"-"&D43&"-"&D44&"-"&D45&"-"&D46&"-"&D47&"-"&D48&"-"&D49&"-"&D50&"-"&D51&D64 -> <Select>-<Select>-<Select>-<Select>-<Select>-<Complete>-<Complete>-<Optional>-0-<Complete>-<Select>-<Select>-<Complete>-<Optional>-<Select>-<Select>-<Complete>-<Complete>-<Complete>-FALSE-FALSE-FALSE-FALSE-FALSE-FALSE-FALSE-<Select>-<Complete>-<Select>-<Select>-<Select>-<Select>-<Select>-<Select>-<Select>-<Complete>-<Optional>-<Complete>-<Complete>-<Complete>-<Optional>-<Optional>-<Optional>FALSE
A6: 5 | B6: Short Plan | D6: =D9&"-"&D10&"-"&D11&"-"&D12&"-"&D13 -> <Select>-<Select>-<Select>-<Select>-<Select>
A7: 6 | B7: Applicant Name | C7: =OFFSET(C7,0,'Quote History'!$E$5+1) -> <Complete> | D7: =IF('BTL Quote'!$C3="","",'BTL Quote'!$C3) -> <Complete>
A8: 7 | B8: Security Address | C8: =OFFSET(C8,0,'Quote History'!$E$5+1) -> <Complete> | D8: =IF('BTL Quote'!$C5="","",'BTL Quote'!$C5) -> <Complete>
A9: 8 | B9: Security Type | C9: =OFFSET(C9,0,'Quote History'!$E$5+1) -> <Select> | D9: =IF('BTL Quote'!$C10="","",'BTL Quote'!$C10) -> <Select>
A10: 9 | B10: Product Type | C10: =OFFSET(C10,0,'Quote History'!$E$5+1) -> <Select> | D10: =IF('BTL Quote'!$C11="","",'BTL Quote'!$C11) -> <Select>
A11: 10 | B11: Repayment Type | C11: =OFFSET(C11,0,'Quote History'!$E$5+1) -> <Select> | D11: =IF('BTL Quote'!$C12="","",'BTL Quote'!$C12) -> <Select>
A12: 11 | B12: Status | C12: =OFFSET(C12,0,'Quote History'!$E$5+1) -> <Select> | D12: =IF('BTL Quote'!$C13="","",'BTL Quote'!$C13) -> <Select>
A13: 12 | B13: Rate Type | C13: =OFFSET(C13,0,'Quote History'!$E$5+1) -> <Select> | D13: =IF('BTL Quote'!$C14="","",'BTL Quote'!$C14) -> <Select>
A14: 13 | B14: Term (months) | C14: =OFFSET(C14,0,'Quote History'!$E$5+1) -> <Complete> | D14: =IF('BTL Quote'!$C15="","",'BTL Quote'!$C15) -> <Complete>
A15: 14 | B15: Net Loan | C15: =OFFSET(C15,0,'Quote History'!$E$5+1) -> <Complete> | D15: =IF('BTL Quote'!$C17="","",'BTL Quote'!$C17) -> <Complete>
A16: 15 | B16: Broker Fee | C16: =OFFSET(C16,0,'Quote History'!$E$5+1) -> <Optional> | D16: =IF('BTL Quote'!$C18="","",'BTL Quote'!$C18) -> <Optional>
A17: 16 | B17: Lender Fee | C17: =OFFSET(C17,0,'Quote History'!$E$5+1) -> 0 | D17: =IF('BTL Quote'!$C19="","",'BTL Quote'!$C19) -> 0
A18: 17 | B18: Value | C18: =OFFSET(C18,0,'Quote History'!$E$5+1) -> <Complete> | D18: =IF('BTL Quote'!$C23="","",'BTL Quote'!$C23) -> <Complete>
A19: 18 | B19: Location | C19: =OFFSET(C19,0,'Quote History'!$E$5+1) -> <Select> | D19: =IF('BTL Quote'!$C24="","",'BTL Quote'!$C24) -> <Select>
A20: 19 | B20: Type | C20: =OFFSET(C20,0,'Quote History'!$E$5+1) -> <Select> | D20: =IF('BTL Quote'!$C25="","",'BTL Quote'!$C25) -> <Select>
A21: 20 | B21: Rental Income | C21: =OFFSET(C21,0,'Quote History'!$E$5+1) -> <Complete> | D21: =IF('BTL Quote'!$C26="","",'BTL Quote'!$C26) -> <Complete>
A22: 21 | B22: Additional Rental Surplus | C22: =OFFSET(C22,0,'Quote History'!$E$5+1) -> <Optional> | D22: =IF('BTL Quote'!$C27="","",'BTL Quote'!$C27) -> <Optional>
A23: 22 | B23: Repayment Type | C23: =OFFSET(C23,0,'Quote History'!$E$5+1) -> <Select> | D23: =IF('BTL Quote'!$C31="","",'BTL Quote'!$C31) -> <Select>
A24: 23 | B24: Rate Type (remaining fix) | C24: =OFFSET(C24,0,'Quote History'!$E$5+1) -> <Select> | D24: =IF('BTL Quote'!$C32="","",'BTL Quote'!$C32) -> <Select>
A25: 24 | B25: Remaining Term (m) | C25: =OFFSET(C25,0,'Quote History'!$E$5+1) -> <Complete> | D25: =IF('BTL Quote'!$C33="","",'BTL Quote'!$C33) -> <Complete>
A26: 25 | B26: Balance | C26: =OFFSET(C26,0,'Quote History'!$E$5+1) -> <Complete> | D26: =IF('BTL Quote'!$C34="","",'BTL Quote'!$C34) -> <Complete>
A27: 26 | B27: Monthly Payment | C27: =OFFSET(C27,0,'Quote History'!$E$5+1) -> <Complete> | D27: =IF('BTL Quote'!$C35="","",'BTL Quote'!$C35) -> <Complete>
A28: 27 | B28: Tick boxes | C28: =OFFSET(C28,0,'Quote History'!$E$5+1) -> FALSE | D28: =IF('BTL Quote'!$C38="","",'BTL Quote'!$C38) -> FALSE
A29: 28 | B29: 1st time LL | C29: =OFFSET(C29,0,'Quote History'!$E$5+1) -> FALSE | D29: =IF('BTL Quote'!$C39="","",'BTL Quote'!$C39) -> FALSE
A30: 29 | B30: Packaged | C30: =OFFSET(C30,0,'Quote History'!$E$5+1) -> FALSE | D30: =IF('BTL Quote'!$C40="","",'BTL Quote'!$C40) -> FALSE
A31: 30 | B31: B fee UF | C31: =OFFSET(C31,0,'Quote History'!$E$5+1) -> FALSE | D31: =IF('BTL Quote'!$C41="","",'BTL Quote'!$C41) -> FALSE
A32: 31 | B32: L fee UF | C32: =OFFSET(C32,0,'Quote History'!$E$5+1) -> FALSE | D32: =IF('BTL Quote'!$C42="","",'BTL Quote'!$C42) -> FALSE
A33: 32 | B33: Add TI | C33: =OFFSET(C33,0,'Quote History'!$E$5+1) -> FALSE | D33: =IF('BTL Quote'!$C43="","",'BTL Quote'!$C43) -> FALSE
A34: 33 | B34: Del Max | C34: =OFFSET(C34,0,'Quote History'!$E$5+1) -> FALSE | D34: =IF('BTL Quote'!$C44="","",'BTL Quote'!$C44) -> FALSE
A35: 34 | B35: Is Borrower a Ltd Co? | C35: =OFFSET(C35,0,'Quote History'!$E$5+1) -> <Select> | D35: =IF('BTL Quote'!$C7="","",'BTL Quote'!$C7) -> <Select>
A36: 35 | B36: Is Property Leasehold? | C36: =OFFSET(C36,0,'Quote History'!$E$5+1) -> <Complete> | D36: =IF('BTL Quote'!$C28="","",'BTL Quote'!$C28) -> <Complete>
A37: 36 | B37: Number of Adults | C37: =OFFSET(C37,0,'Quote History'!$E$5+1) -> <Select> | D37: =IF('BTL Quote'!$L3="","",'BTL Quote'!$L3) -> <Select>
A38: 37 | B38: Number of Dependants | C38: =OFFSET(C38,0,'Quote History'!$E$5+1) -> <Select> | D38: =IF('BTL Quote'!$L4="","",'BTL Quote'!$L4) -> <Select>
A39: 38 | B39: Dependant 1 - age | C39: =OFFSET(C39,0,'Quote History'!$E$5+1) -> <Select> | D39: =IF('BTL Quote'!$L5="","",'BTL Quote'!$L5) -> <Select>
A40: 39 | B40: Dependant 2 - age | C40: =OFFSET(C40,0,'Quote History'!$E$5+1) -> <Select> | D40: =IF('BTL Quote'!$L6="","",'BTL Quote'!$L6) -> <Select>
A41: 40 | B41: Dependant 3 - age | C41: =OFFSET(C41,0,'Quote History'!$E$5+1) -> <Select> | D41: =IF('BTL Quote'!$L7="","",'BTL Quote'!$L7) -> <Select>
A42: 41 | B42: Dependant 4 - age | C42: =OFFSET(C42,0,'Quote History'!$E$5+1) -> <Select> | D42: =IF('BTL Quote'!$L8="","",'BTL Quote'!$L8) -> <Select>
A43: 42 | B43: Dependant 5 - age | C43: =OFFSET(C43,0,'Quote History'!$E$5+1) -> <Select> | D43: =IF('BTL Quote'!$L9="","",'BTL Quote'!$L9) -> <Select>
A44: 43 | B44: Applicant 1 | C44: =OFFSET(C44,0,'Quote History'!$E$5+1) -> <Complete> | D44: =IF('BTL Quote'!$L12="","",'BTL Quote'!$L12) -> <Complete>
A45: 44 | B45: Applicant 2 | C45: =OFFSET(C45,0,'Quote History'!$E$5+1) -> <Optional> | D45: =IF('BTL Quote'!$L13="","",'BTL Quote'!$L13) -> <Optional>
A46: 45 | B46: GROSS ANNUAL Income | C46: =OFFSET(C46,0,'Quote History'!$E$5+1) -> <Complete> | D46: =IF('BTL Quote'!$L14="","",'BTL Quote'!$L14) -> <Complete>
A47: 46 | B47: Residential Mortgage(s) Bal | C47: =OFFSET(C47,0,'Quote History'!$E$5+1) -> <Complete> | D47: =IF('BTL Quote'!$L17="","",'BTL Quote'!$L17) -> <Complete>
A48: 47 | B48: Resi Mort/Rent Pmt | C48: =OFFSET(C48,0,'Quote History'!$E$5+1) -> <Complete> | D48: =IF('BTL Quote'!$L18="","",'BTL Quote'!$L18) -> <Complete>
A49: 48 | B49: Credit Cards | C49: =OFFSET(C49,0,'Quote History'!$E$5+1) -> <Optional> | D49: =IF('BTL Quote'!$L22="","",'BTL Quote'!$L22) -> <Optional>
A50: 49 | B50: Unsecured Credit | C50: =OFFSET(C50,0,'Quote History'!$E$5+1) -> <Optional> | D50: =IF('BTL Quote'!$L23="","",'BTL Quote'!$L23) -> <Optional>
A51: 50 | B51: School Fees/Childcare/Other | C51: =OFFSET(C51,0,'Quote History'!$E$5+1) -> <Optional> | D51: =IF('BTL Quote'!$L24="","",'BTL Quote'!$L24) -> <Optional>
A52: 51
A53: 52 | B53: Net Loan | D53: ='BTL Quote'!$F3 -> 
A54: 53 | B54: Lender Fee | D54: ='BTL Quote'!$F4 -> 
A55: 54 | B55: Title Insurance | D55: ='BTL Quote'!$F5 -> 
A56: 55 | B56: Broker Fee | D56: ='BTL Quote'!$F6 -> 
A57: 56 | B57: Gross Loan | D57: ='BTL Quote'!$F8 -> 
A58: 57 | B58: LTV | D58: ='BTL Quote'!$F9 -> 
A59: 58 | B59: Annual Interest Rate | D59: ='BTL Quote'!$F10 -> 
A60: 59 | B60: Monthly Payment | D60: ='BTL Quote'!$F11 -> 
A61: 60 | B61: Follow on Rate | D61: ='BTL Quote'!$F13 -> 
A62: 61 | B62: Follow on Payment | D62: ='BTL Quote'!$F14 -> 
A63: 62
A64: 63 | B64: Rate Switch | C64: =OFFSET(C64,0,'Quote History'!$E$5+1) -> FALSE | D64: =IF('BTL Quote'!$C45="","",'BTL Quote'!$C45) -> FALSE

Sheet ONS (hidden)
B4: ONS Figures
B5: Updated 04.2025
B6: Multiple | C6: Factor | F6: Quintile | G6: 1 | H6: 2 | I6: 3 | J6: 4 | K6: 5 | M6: Quintile Bands | N6: from (y) | O6: From (m)
B7: 1st adult | C7: 1 | E7: 1 adult | F7: A26 | G7: 1 | H7: 1 | I7: 1 | J7: 1 | K7: 1 | M7: 1 | N7: 0 | P7: 1
B8: Ad adult | C8: 0.7 | E8: 2+ adult | F8: A29 | G8: 1.7 | H8: 1.7 | I8: 1.7 | J8: 1.7 | K8: 1.7 | M8: 2 | N8: 19760 | O8: =N8/12 -> 1646.666667 | P8: 2
B9: Older ch 16-17 | C9: 0.67 | E9: Children | F9: A56 | G9: 1.809070295 | H9: 2.169547325 | I9: 2.350953984 | J9: 2.462782294 | K9: 2.548837209 | M9: 3 | N9: 32604 | O9: =N9/12 -> 2717 | P9: 3
B10: young ch 0-15 | C10: 0.33 | M10: 4 | N10: 48516 | O10: =N10/12 -> 4043 | P10: 4
B11: Buffer | C11: 150 | M11: 5 | N11: 73008 | O11: =N11/12 -> 6084 | P11: 5
B12: Young up to | C12: 15
B14: Monthly 1st adult cost | C14: Pasted Values
C15: Q1 | G15: Q2 | K15: Q3 | O15: Q4 | S15: Q5
C16: Q1A26 | D16: Q1A29 | E16: Q1A56 | G16: Q2A26 | H16: Q2A29 | I16: Q2A56 | K16: Q3A26 | L16: Q3A29 | M16: Q3A56 | O16: Q4A26 | P16: Q4A29 | Q16: Q4A56 | S16: Q5A26 | T16: Q5A29 | U16: Q5A56
C17: A26 | D17: A29 | E17: A56 | G17: A26 | H17: A29 | I17: A56 | K17: A26 | L17: A29 | M17: A56 | O17: A26 | P17: A29 | Q17: A56 | S17: A26 | T17: A29 | U17: A56
B18: Total first adult cost (CT AA) | C18: 693.03 | D18: 700.51 | E18: 552.52 | G18: 908.4 | H18: 794.5 | I18: 629.11 | K18: 1081.75 | L18: 847.96 | M18: 672.13 | O18: 1315.51 | P18: 975.26 | Q18: 755.65 | S18: 1582.28 | T18: 1228.77 | U18: 934.8
